Workbook

Sheet Inputs
A1: Inputs | F1: Cross-section
A3: Relative humidity | B3: 50 | C3: % | F3: Geometry of cross-section | J3: Cross-sectional characteristics
A4: Span of the beam L | B4: 15 | C4: m | F4: btot | G4: 2 | H4: m | J4: Iy,p | K4: =1/12*G5*G9^3 -> 0.01143333333 | L4: m4
A5: Density of concrete | B5: 25 | C5: kN/m3 | F5: bp | G5: 0.4 | H5: m | J5: Iy,m | K5: =1/12*G4*G10^3 -> 0.001333333333 | L5: m4
F6: bm | G6: =(G4-G5)/2 -> 0.8 | H6: m
A7: Type of the concrete used for precast | B7: C50/60 | J7: Cross-sectional characteristics
A8: fcm | B8: 58 | C8: MPa | F8: htot | G8: =G10+G9 -> 0.9 | H8: m | J8: Iy,p,2 | K8: =K4+G12*(G16-G9/2)^2 -> 0.02375181454 | L8: m4
A9: Ecm | B9: 37 | C9: GPa | F9: hp | G9: 0.7 | H9: m | J9: Iy,m,2 | K9: =K5+G13*(G9-G16+G10/2)^2 -> 0.02442158136 | L9: m4
A10: Type of cement | B10: R | F10: hm | G10: 0.2 | H10: m | J10: Iy,s | K10: =K8+K9 -> 0.04817339589 | L10: m4
A11: s | B11: =_xlfn.IFS(B10="R", 0.2, B10="N", 0.25, B10="S", 0.38) -> 0.2
F12: Ap | G12: =G5*G9 -> 0.28 | H12: m2
A13: Type of the concrete used for slab | B13: C30/37 | F13: Am | G13: =G4*G10 -> 0.4 | H13: m2
A14: fcm | B14: 38 | C14: MPa | F14: As | G14: =G12+G13 -> 0.68 | H14: m2
A15: Ecm | B15: 32 | C15: GPa
A16: Type of cement | B16: R | F16: Ts | G16: =(Inputs!G12*Inputs!G9/2+1/Stress!B19*Inputs!G13*(Inputs!G9+Inputs!G10/2))/(Inputs!G12+1/Stress!B19*Inputs!G13) -> 0.5597488396 | H16: m
A17: s | B17: =_xlfn.IFS(B16="R", 0.2, B16="N", 0.25, B16="S", 0.38) -> 0.2 | F17: htot - Ts | G17: =$G$8-G16 -> 0.3402511604 | H17: m | N17: Calculation:
F18: h0p | G18: =2*G12/(G9+G9+G5)*1000 -> 311.1111111 | H18: mm | N18: Calculation: | P18: 365 | Q18: Times
A19: Setting of precast | B19: 3 | C19: days | F19: h0m | G19: =2*G13/2/G4*1000 -> 200 | H19: mm | N19: Global time: | P19: =Strain!B2 -> 365 | Q19: Days
A20: Concrete lay of the slab | B20: 28 | C20: days
A21: Next loading | B21: 56 | C21: days
A22: Age at loading, slab | B22: =B21-B20 -> 28 | C22: days
A24: Age at loading, precast (modified)
A25: t0p,1 | B25: =$B$19*(9/(2+$B$19^(1.2))+1)^(_xlfn.IFS($B$10="R", 1, $B$10="N", 0, $B$10="S", -1)) -> 7.706134316 | C25: days
A26: t0p,2 | B26: =$B$20*(9/(2+$B$20^(1.2))+1)^(_xlfn.IFS($B$10="R", 1, $B$10="N", 0, $B$10="S", -1)) -> 32.45826411 | C26: days
A27: t0p,3 | B27: =$B$21*(9/(2+$B$21^(1.2))+1)^(_xlfn.IFS($B$10="R", 1, $B$10="N", 0, $B$10="S", -1)) -> 59.96027734 | C27: days
A28: Age at loading, slab (modified)
A29: t0m | B29: =($B$21-$B$22)*(9/(2+($B$21-$B$22)^(1.2))+1)^(_xlfn.IFS($B$16="R", 1, $B$16="N", 0, $B$16="S", -1)) -> 32.45826411 | C29: days
A31: Loads
A32: Precast dead load | B32: =G12*B5 -> 7 | C32: kN/m
A33: Slab dead load | B33: =G13*B5 -> 10 | C33: kN/m
A34: Other load | B34: 10 | C34: kN/m
A35: Load in total | B35: =SUM(B32:B34) -> 27 | C35: kN/m
A37: Loads in moments of force
A38: Precast dead load | B38: =1/8*B32*$B$4^2 -> 196.875 | C38: kNm
A39: Slab dead load | B39: =1/8*B33*$B$4^2 -> 281.25 | C39: kNm
A40: Other load | B40: =1/8*B34*$B$4^2 -> 281.25 | C40: kNm
A41: Load in total | B41: =SUM(B38:B40) -> 759.375 | C41: kNm
A43: Prestressing
A44: Prestress force of the tendon (t=0) | B44: 1850 | C44: kN
A45: Excentricity (centre of grav. of prec.) | B45: 0.2 | C45: m

Sheet Creep of precast
A1: Creep of precast
A2: time | B2: 365 | C2: days
A4: Calculation of creep coeﬃcient ϕ (EC 1992-1-1)
A5: ϕ (t,3) | E5: ϕ (t,28) | I5: ϕ (t,56)
A6: t0 | B6: =Inputs!$B$25 -> 7.706134316 | C6: days | E6: t0 | F6: =Inputs!$B$26 -> 32.45826411 | G6: days | I6: t0 | J6: =Inputs!$B$27 -> 59.96027734 | K6: days
A7: ϕ (t, t0) | B7: =_xlfn.IFS(B2<Inputs!B19, 0, B2>=Inputs!B19, $B$17*$B$9) -> 1.381588215 | C7: - | E7: ϕ (t, t0) | F7: =_xlfn.IFS(B2<Inputs!$B$20, 0, B2>=Inputs!$B$20, $F$17*$F$9) -> 1.038005313 | G7: - | I7: ϕ (t, t0) | J7: =_xlfn.IFS(B2<Inputs!$B$21, 0, B2>=Inputs!$B$21, $J$17*$J$9) -> 0.9071672795 | K7: - | M7: ϕ (t, t0) | N7: Creep coeﬃcient
A8: ϕ (36500) | B8: =$B$18*$B$9 -> 1.876636438 | C8: - | E8: ϕ (36500) | F8: =$F$18*$F$9 -> 1.429879128 | G8: - | I8: ϕ (36500) | J8: =$J$18*$J$9 -> 1.27168288 | K8: - | M8: ϕ (36500) | N8: Creep coeﬃcient, time = 100 years
A9: ϕ0 | B9: =B10*B14*B15 -> 1.886767597 | C9: - | E9: ϕ0 | F9: =F10*F14*F15 -> 1.437603693 | G9: - | I9: ϕ0 | J9: =J10*J14*J15 -> 1.278558075 | K9: - | M9: ϕ0 | N9: Basic creep coeﬃcient
A10: ϕRH | B10: =_xlfn.IFS(Inputs!B8<=35,1+1-Inputs!$B$3/100/(0.1*(Inputs!$G$18)^(1/3)),Inputs!B8>35,(1+(1-Inputs!$B$3/100)/(0.1*(Inputs!$G$18)^(1/3))*B11)*B12) -> 1.372269841 | C10: - | E10: ϕRH | F10: =_xlfn.IFS(Inputs!$B$8<=35,1+1-Inputs!$B$3/100/(0.1*(Inputs!$G$18)^(1/3)),Inputs!$B$8>35,(1+(1-Inputs!$B$3/100)/(0.1*(Inputs!$G$18)^(1/3))*F11)*F12) -> 1.372269841 | G10: - | I10: ϕRH | J10: =_xlfn.IFS(Inputs!$B$8<=35,1+1-Inputs!$B$3/100/(0.1*(Inputs!$G$18)^(1/3)),Inputs!$B$8>35,(1+(1-Inputs!$B$3/100)/(0.1*(Inputs!$G$18)^(1/3))*J11)*J12) -> 1.372269841 | K10: - | M10: ϕRH | N10: Coefficient describing the effect of relative humidity on the basic creep coefficient
A11: α1 | B11: =(35/Inputs!$B$8)^0.7 -> 0.7021793212 | C11: - | E11: α1 | F11: =(35/Inputs!$B$8)^0.7 -> 0.7021793212 | G11: - | I11: α1 | J11: =(35/Inputs!$B$8)^0.7 -> 0.7021793212 | K11: - | M11: α1 | N11: Concrete strength influence coefficients
A12: α2 | B12: =(35/Inputs!$B$8)^0.2 -> 0.9039158675 | C12: - | E12: α2 | F12: =(35/Inputs!$B$8)^0.2 -> 0.9039158675 | G12: - | I12: α2 | J12: =(35/Inputs!$B$8)^0.2 -> 0.9039158675 | K12: - | M12: α2 | N12: Concrete strength influence coefficients
A13: α3 | B13: =(35/Inputs!$B$8)^0.5 -> 0.7768193328 | C13: - | E13: α3 | F13: =(35/Inputs!$B$8)^0.5 -> 0.7768193328 | G13: - | I13: α3 | J13: =(35/Inputs!$B$8)^0.5 -> 0.7768193328 | K13: - | M13: α3 | N13: Concrete strength influence coefficients
A14: β (fcm) | B14: =16.8/(Inputs!$B$8)^0.5 -> 2.205948072 | C14: - | E14: β (fcm) | F14: =16.8/(Inputs!$B$8)^0.5 -> 2.205948072 | G14: - | I14: β (fcm) | J14: =16.8/(Inputs!$B$8)^0.5 -> 2.205948072 | K14: - | M14: β (fcm) | N14: Coefficient describing the effect of concrete strength on the primary creep coefficient
A15: β (t0) | B15: =1/(0.1+B6^0.2) -> 0.623280594 | C15: - | E15: β (t0) | F15: =1/(0.1+F6^0.2) -> 0.4749024126 | G15: - | I15: β (t0) | J15: =1/(0.1+J6^0.2) -> 0.4223627954 | K15: - | M15: β (t0) | N15: Coefficient describing the effect of the age of the concrete at the time of loading on the basic creep coefficient
A16: βH | B16: =_xlfn.IFS(Inputs!$B$8<=35,MIN(1500,1.5*(1+(0.012*Inputs!$B$3)^18)*Inputs!$G$18+250),Inputs!$B$8>35,MIN(1500*B13,1.5*(1+(0.012*Inputs!$B$3)^18)*Inputs!$G$18+250*B13)) -> 660.9188945 | C16: - | E16: βH | F16: =_xlfn.IFS(Inputs!$B$8<=35,MIN(1500,1.5*(1+(0.012*Inputs!$B$3)^18)*Inputs!$G$18+250),Inputs!$B$8>35,MIN(1500*F13,1.5*(1+(0.012*Inputs!$B$3)^18)*Inputs!$G$18+250*F13)) -> 660.9188945 | G16: - | I16: βH | J16: =_xlfn.IFS(Inputs!$B$8<=35,MIN(1500,1.5*(1+(0.012*Inputs!$B$3)^18)*Inputs!$G$18+250),Inputs!$B$8>35,MIN(1500*J13,1.5*(1+(0.012*Inputs!$B$3)^18)*Inputs!$G$18+250*J13)) -> 660.9188945 | K16: - | M16: βH | N16: Coefficient describing the effect of relative humidity and eﬀective cross section thickness on the basci creep coefficient
A17: βc (t, t0) | B17: =_xlfn.IFS(B2<Inputs!B19, 0, B2>=Inputs!B19, ((B2-Inputs!$B$19)/($B$16+B2-Inputs!$B$19))^0.3) -> 0.7322514005 | C17: - | E17: βc (t, t0) | F17: =_xlfn.IFS(B2<Inputs!$B$20, 0, B2>=Inputs!$B$20, ((B2-Inputs!$B$20)/($F$16+B2-Inputs!$B$20))^0.3) -> 0.7220385686 | G17: - | I17: βc (t, t0) | J17: =_xlfn.IFS(B2<Inputs!$B$21, 0, B2>=Inputs!$B$21, ((B2-Inputs!$B$21)/($J$16+B2-Inputs!$B$21))^0.3) -> 0.7095237184 | K17: - | M17: βc (t, t0)
A18: βc (36500) | B18: =((36500-Inputs!$B$19)/($B$16+36500-Inputs!$B$19))^0.3 -> 0.9946304151 | C18: - | E18: βc (36500) | F18: =((36500-Inputs!$B$20)/($F$16+36500-Inputs!$B$20))^0.3 -> 0.9946267772 | G18: - | I18: βc (36500) | J18: =((36500-Inputs!$B$21)/($J$16+36500-Inputs!$B$21))^0.3 -> 0.9946226968 | K18: - | M18: βc (36500)
A20: Calculation of concrete strength in time
A21: βcc (t) | B21: =_xlfn.IFS(B2<1, 0, B2>=0, EXP(Inputs!$B$11*(1-(28/$B$2)^(1/2)))) -> 1.155584202 | C21: - | E21: βcc (t) | F21: =_xlfn.IFS(B2<1, 0, B2>=0, EXP(Inputs!$B$11*(1-(28/$B$2)^(1/2)))) -> 1.155584202 | G21: - | I21: βcc (t) | J21: =_xlfn.IFS(B2<1, 0, B2>=0, EXP(Inputs!$B$11*(1-(28/$B$2)^(1/2)))) -> 1.155584202 | K21: - | M21: βcc | N21: Coefficient depending on the age of the concrete
A22: fcm (t) | B22: =B21*Inputs!B$8 -> 67.02388372 | C22: MPa | E22: fcm (t) | F22: =F21*Inputs!B$8 -> 67.02388372 | G22: MPa | I22: fcm (t) | J22: =J21*Inputs!B$8 -> 67.02388372 | K22: MPa | M22: fcm (t) | N22: Strength of concrete in time
A23: βcc (t0) | B23: =_xlfn.IFS(Inputs!$B$19>=28, 1, Inputs!$B$19<28, EXP(Inputs!$B$11*(1-(28/Inputs!$B$19)^(1/2)))) -> 0.6629802403 | C23: - | E23: βcc (t0) | F23: =_xlfn.IFS(Inputs!$B$26>=28, 1, Inputs!$B$26<28, EXP(Inputs!$B$11*(1-(28/Inputs!$B$26)^(1/2)))) -> 1 | G23: - | I23: βcc (t0) | J23: =_xlfn.IFS(Inputs!$B$21>=28, 1, Inputs!$B$21<28, EXP(Inputs!$B$11*(1-(28/Inputs!$B$21)^(1/2)))) -> 1 | K23: - | N23: βcc (t0>=28) = 1
A24: fcm (t0) | B24: =B23*Inputs!$B$8 -> 38.45285394 | C24: MPa | E24: fcm (t0) | F24: =F23*Inputs!$B$8 -> 58 | G24: MPa | I24: fcm (t0) | J24: =J23*Inputs!$B$8 -> 58 | K24: MPa | M24: fcm (t0) | N24: Strength of concrete in time of loading
A25: Ec (t0) | B25: =(B24/Inputs!$B$8)^(0.3)*Inputs!$B$9 -> 32.70784263 | C25: GPa | E25: Ec (t0) | F25: =(F24/Inputs!$B$8)^(0.3)*Inputs!$B$9 -> 37 | G25: GPa | I25: Ec (t0) | J25: =(J24/Inputs!$B$8)^(0.3)*Inputs!$B$9 -> 37 | K25: GPa | M25: Ec (t0) | N25: Modulus of elasticity of concrete in time of loading
A27: Calculation of the modulus of elasticity of concrete in time | M27: Modulus of elasticity in time
M28: t < 28 days | N28: t > 28 days
A29: Ec (t) | B29: =(B22/Inputs!$B$8)^(0.3)*Inputs!$B$9 -> 38.64045244 | C29: GPa | E29: Ec (t) | F29: =(F22/Inputs!$B$8)^(0.3)*Inputs!$B$9 -> 38.64045244 | G29: GPa | I29: Ec (t) | J29: =(J22/Inputs!$B$8)^(0.3)*Inputs!$B$9 -> 38.64045244 | K29: GPa | M29: E(fcm) | N29: E(fcm)
A30: Ec (t) | B30: =_xlfn.IFS($B$2<=28, B29, $B$2>28, Inputs!$B$9) -> 37 | C30: GPa | E30: Ec (t) | F30: =_xlfn.IFS($B$2<=28, F29, $B$2>28, Inputs!$B$9) -> 37 | G30: GPa | I30: Ec (t) | J30: =_xlfn.IFS($B$2<=28, J29, $B$2>28, Inputs!$B$9) -> 37 | K30: GPa | M30: E(fcm) | N30: Ecm
A31: Ec,eff (t) | B31: =B29/(1+B7) -> 16.22465722 | C31: GPa | E31: Ec,eff (t) | F31: =F29/(1+F7) -> 18.95993705 | G31: GPa | I31: Ec,eff (t) | J31: =J29/(1+J7) -> 20.26065194 | K31: GPa | M31: E(fcm, ϕ) | N31: E(fcm, ϕ)
A32: Ecm,eff(t) | B32: =Inputs!$B$9/(1+B7) -> 15.53585115 | C32: GPa | E32: Ecm,eff(t) | F32: =Inputs!$B$9/(1+F7) -> 18.15500665 | G32: GPa | I32: Ecm,eff(t) | J32: =Inputs!$B$9/(1+J7) -> 19.40050063 | K32: GPa | M32: Ecm(ϕ) | N32: Ecm(ϕ)
A33: Ec (t) | B33: =_xlfn.IFS($B$2<=28, B31, $B$2>28, Inputs!$B$9/(1+B7)) -> 15.53585115 | C33: GPa | E33: Ec (t) | F33: =_xlfn.IFS($B$2<=28, F31, $B$2>28, Inputs!$B$9/(1+F7)) -> 18.15500665 | G33: GPa | I33: Ec (t) | J33: =_xlfn.IFS($B$2<=28, J31, $B$2>28, Inputs!$B$9/(1+J7)) -> 19.40050063 | K33: GPa | M33: E(fcm, ϕ) | N33: Ecm (ϕ)
M34: t < t0 days | N34: t > t0 days
A35: Ec (t) | B35: =_xlfn.IFS($B$2>=Inputs!$B$19, B25, $B$2<Inputs!$B$19, B33) -> 32.70784263 | C35: GPa | M35: E(fcm) | N35: E(t0)
A37: Ec,eff,fin (t) | B37: =_xlfn.IFS($B$2>=Inputs!$B$19, B25/(1+B7), $B$2<Inputs!$B$19, B33) -> 13.73362633 | C37: GPa | E37: Ec,eff,fin (t) | F37: =_xlfn.IFS($B$2>=Inputs!$B$20, F25/(1+F7), $B$2<Inputs!$B$20, F33) -> 18.15500665 | G37: GPa | I37: Ec,eff,fin (t) | J37: =_xlfn.IFS($B$2>=Inputs!$B$21, J25/(1+J7), $B$2<Inputs!$B$21, J33) -> 19.40050063 | K37: GPa | M37: E(fcm) | N37: E(t0)(ϕ)

Sheet Creep of slab
A1: Creep of slab
A2: time | B2: 337 | C2: days
A4: Calculation of creep coeﬃcient ϕ (EC 1992-1-1)
A5: ϕ (t,28)
A6: t0 | B6: =Inputs!$B$29 -> 32.45826411 | C6: days
A7: ϕ (t, t0) | B7: =_xlfn.IFS(B2<Inputs!B22, 0, B2>=Inputs!B22, $B$17*$B$9) -> 1.699012701 | C7: - | M7: ϕ (t, t0) | N7: Creep coeﬃcient
A8: ϕ (36500) | B8: =$B$18*$B$9 -> 2.290658652 | C8: - | M8: ϕ (36500) | N8: Creep coeﬃcient, time = 100 years
A9: ϕ0 | B9: =B10*B14*B15 -> 2.300780168 | C9: - | M9: ϕ0 | N9: Basic creep coeﬃcient
A10: ϕRH | B10: =_xlfn.IFS(Inputs!$B$14<=35,1+1-Inputs!$B$3/100/(0.1*(Inputs!$G$19)^(1/3)),Inputs!$B$14>35,(1+(1-Inputs!$B$3/100)/(0.1*(Inputs!$G$19)^(1/3))*B11)*B12) -> 1.777678688 | C10: - | M10: ϕRH | N10: Coefficient describing the effect of relative humidity on the basic creep coefficient
A11: α1 | B11: =(35/Inputs!$B$14)^0.7 -> 0.944058949 | C11: - | M11: α1 | N11: Concrete strength influence coefficients
A12: α2 | B12: =(35/Inputs!$B$14)^0.2 -> 0.9836869039 | C12: - | M12: α2 | N12: Concrete strength influence coefficients
A13: α3 | B13: =(35/Inputs!$B$14)^0.5 -> 0.9597148699 | C13: - | M13: α3 | N13: Concrete strength influence coefficients
A14: β (fcm) | B14: =16.8/(Inputs!$B$14)^0.5 -> 2.725319875 | C14: - | M14: β (fcm) | N14: Coefficient describing the effect of concrete strength on the primary creep coefficient
A15: β (t0) | B15: =1/(0.1+B6^0.2) -> 0.4749024126 | C15: - | M15: β (t0) | N15: Coefficient describing the effect of the age of the concrete at the time of loading on the basic creep coefficient
A16: βH | B16: =_xlfn.IFS(Inputs!$B$14<=35,MIN(1500,1.5*(1+(0.012*Inputs!$B$3)^18)*Inputs!$G$19+250),Inputs!$B$14>35,MIN(1500*B13,1.5*(1+(0.012*Inputs!$B$3)^18)*Inputs!$G$19+250*B13)) -> 539.9591855 | C16: - | M16: βH | N16: Coefficient describing the effect of relative humidity and eﬀective cross section thickness on the basci creep coefficient
A17: βc (t, t0) | B17: =_xlfn.IFS(B2<Inputs!B22, 0, B2>=Inputs!B22,((B2-Inputs!$B$22)/($B$16+B2-Inputs!$B$22))^0.3) -> 0.7384506895 | C17: - | M17: βc (t, t0)
A18: βc (36500) | B18: =((36500-Inputs!$B$22)/($B$16+36500-Inputs!$B$22))^0.3 -> 0.9956008332 | C18: - | M18: βc (36500)
A20: Calculation of concrete strength in time
A21: βcc (t) | B21: =_xlfn.IFS(B2<1, 0, B2>=0, EXP(Inputs!$B$17*(1-(28/$B$2)^(1/2)))) -> 1.152980925 | M21: βcc | N21: Coefficient depending on the age of the concrete
A22: fcm (t) | B22: =B21*Inputs!B$14 -> 43.81327513 | C22: MPa | M22: fcm (t) | N22: Strength of concrete in time
A23: βcc (t0) | B23: =_xlfn.IFS(Inputs!$B$22>=28, 1, Inputs!$B$22<28, EXP(Inputs!$B$17*(1-(28/Inputs!$B$22)^(1/2)))) -> 1 | C23: - | N23: βcc (t0>=28) = 1
A24: fcm (t0) | B24: =B23*Inputs!$B$14 -> 38 | C24: MPa | M24: fcm (t0) | N24: Strength of concrete in time of loading
A25: Ec (t0) | B25: =(B24/Inputs!$B$14)^(0.3)*Inputs!$B$15 -> 32 | C25: GPa | M25: Ec (t0) | N25: Modulus of elasticity of concrete in time of loading
A27: Calculation of the modulus of elasticity of concrete in time | M27: Modulus of elasticity in time
M28: t < 28 days | N28: t > 28 days
A29: Ec (t) | B29: =(B22/Inputs!$B$14)^(0.3)*Inputs!$B$15 -> 33.3961663 | C29: GPa | M29: E(fcm) | N29: E(fcm)
A30: Ec (t) | B30: =_xlfn.IFS($B$2<=28, B29, $B$2>28, Inputs!$B$15) -> 32 | C30: GPa | M30: E(fcm) | N30: Ecm
A31: Ec,eff (t) | B31: =B29/(1+B7) -> 12.37347504 | C31: GPa | M31: E(fcm, ϕ) | N31: E(fcm, ϕ)
A32: Ecm,eff(t) | B32: =Inputs!$B$15/(1+B7) -> 11.85618726 | C32: GPa | M32: Ecm(ϕ) | N32: Ecm(ϕ)
A33: Ec (t) | B33: =_xlfn.IFS($B$2<=28, B31, $B$2>28, Inputs!$B$15/(1+B7)) -> 11.85618726 | C33: GPa | M33: E(fcm, ϕ) | N33: Ecm (ϕ)
M34: t < t0 days | N34: t > t0 days
A35: Ec (t) | B35: =_xlfn.IFS($B$2>=Inputs!$B$22, B25, $B$2<Inputs!$B$22, B33) -> 32 | C35: GPa | M35: E(fcm) | N35: E(t0)
A37: Ec,eff,fin (t) | B37: =_xlfn.IFS($B$2>=Inputs!$B$22, B25/(1+B7), $B$2<Inputs!$B$22, B33) -> 11.85618726 | C37: GPa | M37: E(fcm) | N37: E(t0)(ϕ)

Sheet Stress
A1: Stress in time
A2: time | B2: =Strain!$B$2 -> 365 | C2: days | G2: Phase 3 | H2: w/o press. | I2: Phase 1 | J2: Phase 2
A3: zts | B3: ztp | C3: σx1 | D3: σxp | E3: σx2 | F3: σx3 | G3: σxtot | H3: σx123 | I3: σxphase1 | J3: σxphase2
A4: =Inputs!$G$16-Inputs!$G$8 -> -0.3402511604 | B4: -0.55 | C4: 0 | D4: 0 | E4: 0 | F4: 0 | G4: =SUM(C4:E4)+F4 -> 0 | H4: =SUM(C4+F4+E4) -> 0 | I4: =C4+D4 -> 0 | J4: =SUM(C4:E4) -> 0
A5: =Inputs!$G$16-Inputs!$G$8 -> -0.3402511604 | B5: -0.55 | C5: 0 | D5: 0 | E5: 0 | F5: =_xlfn.IFS($B$2>=Inputs!$B$21, Inputs!$B$40/$B$21*A5/$B$19*0.001, $B$2<Inputs!$B$21, 0) -> -1.51208714 | G5: -1.51208714 | H5: -1.51208714 | I5: =C5+D5 -> 0 | J5: =SUM(C5:E5) -> 0
A6: =Inputs!$G$16-Inputs!$G$9 -> -0.1402511604 | B6: =-Inputs!$G$9/2 -> -0.35 | C6: 0 | D6: 0 | E6: 0 | F6: =_xlfn.IFS($B$2>=Inputs!$B$21, Inputs!$B$40/$B$21*A6/$B$19*0.001, $B$2<Inputs!$B$21, 0) -> -0.623280684 | G6: -0.623280684 | H6: -0.623280684 | I6: 0 | J6: 0
A7: =Inputs!$G$16-Inputs!$G$9 -> -0.1402511604 | B7: =-Inputs!$G$9/2 -> -0.35 | C7: =_xlfn.IFS($B$2>=Inputs!$B$19, Inputs!$B$38/Inputs!$K$4*B7*0.001, $B$2<Inputs!$B$19, 0) -> -6.026785714 | D7: =_xlfn.IFS($B$2>=Inputs!$B$19, (-Inputs!$B$44/Inputs!$G$12-Inputs!$B$44*Inputs!$B$45/Inputs!$K$4*B7)/1000, $B$2<Inputs!$B$19, 0) -> 4.719387755 | E7: =_xlfn.IFS($B$2>=Inputs!$B$20, Inputs!$B$39/Inputs!$K$4*B7*0.001, $B$2<Inputs!$B$20, 0) -> -8.609693878 | F7: =_xlfn.IFS($B$2>=Inputs!$B$21, Inputs!$B$40/$B$21*A7*0.001, $B$2<Inputs!$B$21, 0) -> -1.019885823 | G7: -10.93697766 | H7: -15.65636541 | I7: -1.307397959 | J7: -9.917091837
A8: =Inputs!$G$16-Inputs!$G$16 -> 0 | B8: =-Inputs!$G$9/2-(Inputs!$G$16-Inputs!$G$9) -> -0.2097488396 | C8: =_xlfn.IFS($B$2>=Inputs!$B$19, Inputs!$B$38/Inputs!$K$4*B8*0.001, $B$2<Inputs!$B$19, 0) -> -3.611746601 | D8: =_xlfn.IFS($B$2>=Inputs!$B$19, (-Inputs!$B$44/Inputs!$G$12-Inputs!$B$44*Inputs!$B$45/Inputs!$K$4*B8)/1000, $B$2<Inputs!$B$19, 0) -> 0.18064758 | E8: =_xlfn.IFS($B$2>=Inputs!$B$20, Inputs!$B$39/Inputs!$K$4*B8*0.001, $B$2<Inputs!$B$20, 0) -> -5.159638001 | F8: =_xlfn.IFS($B$2>=Inputs!$B$21, Inputs!$B$40/$B$21*A8*0.001, $B$2<Inputs!$B$21, 0) -> 0 | G8: -8.590737022 | H8: -8.771384602 | I8: -3.431099021 | J8: -8.590737022
A9: =Inputs!$G$16-Inputs!$G$9/2 -> 0.2097488396 | B9: =Inputs!$G$9/2-Inputs!$G$9/2 -> 0 | C9: =_xlfn.IFS($B$2>=Inputs!$B$19, Inputs!$B$38/Inputs!$K$4*B9*0.001, $B$2<Inputs!$B$19, 0) -> 0 | D9: =_xlfn.IFS($B$2>=Inputs!$B$19, (-Inputs!$B$44/Inputs!$G$12-Inputs!$B$44*Inputs!$B$45/Inputs!$K$4*B9)/1000, $B$2<Inputs!$B$19, 0) -> -6.607142857 | E9: =_xlfn.IFS($B$2>=Inputs!$B$20, Inputs!$B$39/Inputs!$K$4*B9*0.001, $B$2<Inputs!$B$20, 0) -> 0 | F9: =_xlfn.IFS($B$2>=Inputs!$B$21, Inputs!$B$40/$B$21*A9*0.001, $B$2<Inputs!$B$21, 0) -> 1.525262732 | G9: -5.081880126 | H9: 1.525262732 | I9: -6.607142857 | J9: -6.607142857
A10: =_xlfn.IFS(G11<=0,A11, G11>0,B14) -> 0.5135282444 | B10: =_xlfn.IFS(G11<=0,B11, G11>0,B15) -> 0.3037794048 | C10: =_xlfn.IFS($B$2>=Inputs!$B$19, Inputs!$B$38/Inputs!$K$4*B10*0.001, $B$2<Inputs!$B$19, 0) -> 5.230895363 | D10: =_xlfn.IFS($B$2>=Inputs!$B$19, (-Inputs!$B$44/Inputs!$G$12-Inputs!$B$44*Inputs!$B$45/Inputs!$K$4*B10)/1000, $B$2<Inputs!$B$19, 0) -> -16.43790494 | E10: =_xlfn.IFS($B$2>=Inputs!$B$20, Inputs!$B$39/Inputs!$K$4*B10*0.001, $B$2<Inputs!$B$20, 0) -> 7.472707662 | F10: =_xlfn.IFS($B$2>=Inputs!$B$21, Inputs!$B$40/$B$21*A10*0.001, $B$2<Inputs!$B$21, 0) -> 3.734301912 | G10: 4.440892099e-15 | H10: 16.43790494 | I10: -11.20700957 | J10: -3.734301912
A11: =Inputs!$G$16 -> 0.5597488396 | B11: =Inputs!$G$9/2 -> 0.35 | C11: =_xlfn.IFS($B$2>=Inputs!$B$19, Inputs!$B$38/Inputs!$K$4*B11*0.001, $B$2<Inputs!$B$19, 0) -> 6.026785714 | D11: =_xlfn.IFS($B$2>=Inputs!$B$19, (-Inputs!$B$44/Inputs!$G$12-Inputs!$B$44*Inputs!$B$45/Inputs!$K$4*B11)/1000, $B$2<Inputs!$B$19, 0) -> -17.93367347 | E11: =_xlfn.IFS($B$2>=Inputs!$B$20, Inputs!$B$39/Inputs!$K$4*B11*0.001, $B$2<Inputs!$B$20, 0) -> 8.609693878 | F11: =_xlfn.IFS($B$2>=Inputs!$B$21, Inputs!$B$40/$B$21*A11*0.001, $B$2<Inputs!$B$21, 0) -> 4.070411286 | G11: 0.7732174086 | H11: 18.70689088 | I11: -11.90688776 | J11: -3.297193878
A12: =Inputs!$G$16 -> 0.5597488396 | B12: =Inputs!$G$9/2 -> 0.35 | C12: 0 | D12: 0 | E12: 0 | F12: 0 | G12: 0 | H12: 0 | I12: 0 | J12: 0
A14: N.A. | B14: =_xlfn.IFS($B$2>=Inputs!$B$19, Inputs!$G$16-Inputs!$G$16*$G$11/($G$11-$G$8), $B$2<Inputs!$B$19, 0) -> 0.5135282444 | C14: m
B15: =_xlfn.IFS($B$2>=Inputs!$B$19, Inputs!$G$9/2-Inputs!$G$16*$G$11/($G$11-$G$8), $B$2<Inputs!$B$19, 0) -> 0.3037794048 | C15: m
A17: Calculation of ideal cross-section
A18: for t > 56 days
A19: αe | B19: =_xlfn.IFS(B2>=56,'Creep of precast'!J37/'Creep of slab'!B37, B2<56,1) -> 1.636318675 | C19: -
A20: As | B20: =Inputs!G12+Inputs!G13/Stress!B19 -> 0.5244511611 | C20: m^2
A21: Is | B21: =Inputs!K8+Inputs!K9/Stress!B19 -> 0.03867652433 | C21: m^4

Sheet Strain
A1: Strain in time
A2: time | B2: 365 | C2: days | G2: Phase 3 | H2: w/o press. | I2: Phase 1 | J2: Phase 2
A3: zts | B3: ztp | C3: εx1 | D3: εxp | E3: εx2 | F3: εx3 | G3: εxtot | H3: εx123 | I3: εxphase1 | J3: εxphase2
A4: =Inputs!$G$16-Inputs!$G$8 -> -0.3402511604 | B4: -0.55 | C4: 0 | D4: 0 | E4: 0 | F4: 0 | G4: =SUM(C4:F4) -> 0 | H4: =C4+E4+F4 -> 0 | I4: =C4+D4 -> 0 | J4: =SUM(C4:E4) -> 0
A5: =Inputs!$G$16-Inputs!$G$8 -> -0.3402511604 | B5: -0.55 | C5: 0 | D5: 0 | E5: 0 | F5: =_xlfn.IFS($B$2>=Inputs!$B$21,Stress!F5/('Creep of slab'!$B$37*1000), $B$2<Inputs!$B$21, 0) -> -0.0001275356999 | G5: -0.0001275356999 | H5: =C5+E5+F5 -> -0.0001275356999 | I5: =C5+D5 -> 0 | J5: =SUM(C5:E5) -> 0
A6: =Inputs!$G$16-Inputs!$G$9 -> -0.1402511604 | B6: =-Inputs!$G$9/2 -> -0.35 | C6: 0 | D6: 0 | E6: 0 | F6: =_xlfn.IFS($B$2>=Inputs!$B$21,Stress!F6/('Creep of slab'!$B$37*1000), $B$2<Inputs!$B$21, 0) -> -5.257007759e-05 | G6: -5.257007759e-05 | H6: -5.257007759e-05 | I6: 0 | J6: 0
A7: =Inputs!$G$16-Inputs!$G$9 -> -0.1402511604 | B7: =-Inputs!$G$9/2 -> -0.35 | C7: =_xlfn.IFS($B$2>=Inputs!$B$19, Stress!C7/('Creep of precast'!$B$37*1000), $B$2<Inputs!$B$19, 0) -> -0.0004388342574 | D7: =_xlfn.IFS($B$2>=Inputs!$B$19, Stress!D7/('Creep of precast'!$B$37*1000), $B$2<Inputs!$B$19, 0) -> 0.0003436374079 | E7: =_xlfn.IFS($B$2>=Inputs!$B$20, Stress!E7/('Creep of precast'!$F$37*1000), $B$2<Inputs!$B$20, 0) -> -0.0004742324828 | F7: =_xlfn.IFS($B$2>=Inputs!$B$21,Stress!F7/('Creep of precast'!$J$37*1000), $B$2<Inputs!$B$21, 0) -> -5.257007759e-05 | G7: -0.0006219994099 | H7: -0.0009656368178 | I7: -9.51968495e-05 | J7: -0.0005694293323
A8: =Inputs!$G$16-Inputs!$G$16 -> 0 | B8: =-Inputs!$G$9/2-(Inputs!$G$16-Inputs!$G$9) -> -0.2097488396 | C8: =_xlfn.IFS($B$2>=Inputs!$B$19, Stress!C8/('Creep of precast'!$B$37*1000), $B$2<Inputs!$B$19, 0) -> -0.0002629856465 | D8: =_xlfn.IFS($B$2>=Inputs!$B$19, Stress!D8/('Creep of precast'!$B$37*1000), $B$2<Inputs!$B$19, 0) -> 1.315366937e-05 | E8: =_xlfn.IFS($B$2>=Inputs!$B$20, Stress!E8/('Creep of precast'!$F$37*1000), $B$2<Inputs!$B$20, 0) -> -0.0002841991799 | F8: =_xlfn.IFS($B$2>=Inputs!$B$21,Stress!F8/('Creep of precast'!$J$37*1000), $B$2<Inputs!$B$21, 0) -> 0 | G8: -0.0005340311571 | H8: -0.0005471848265 | I8: -0.0002498319772 | J8: -0.0005340311571
A9: =Inputs!$G$16-Inputs!$G$9/2 -> 0.2097488396 | B9: =Inputs!$G$9/2-Inputs!$G$9/2 -> 0 | C9: =_xlfn.IFS($B$2>=Inputs!$B$19, Stress!C9/('Creep of precast'!$B$37*1000), $B$2<Inputs!$B$19, 0) -> 0 | D9: =_xlfn.IFS($B$2>=Inputs!$B$19, Stress!D9/('Creep of precast'!$B$37*1000), $B$2<Inputs!$B$19, 0) -> -0.0004810923711 | E9: =_xlfn.IFS($B$2>=Inputs!$B$20, Stress!E9/('Creep of precast'!$F$37*1000), $B$2<Inputs!$B$20, 0) -> 0 | F9: =_xlfn.IFS($B$2>=Inputs!$B$21,Stress!F9/('Creep of precast'!$J$37*1000), $B$2<Inputs!$B$21, 0) -> 7.861976147e-05 | G9: -0.0004024726097 | H9: 7.861976147e-05 | I9: -0.0004810923711 | J9: -0.0004810923711
A10: =Stress!A10 -> 0.5135282444 | B10: =Stress!B10 -> 0.3037794048 | C10: =_xlfn.IFS($B$2>=Inputs!$B$19, Stress!C10/('Creep of precast'!$B$37*1000), $B$2<Inputs!$B$19, 0) -> 0.0003808823129 | D10: =_xlfn.IFS($B$2>=Inputs!$B$19, Stress!D10/('Creep of precast'!$B$37*1000), $B$2<Inputs!$B$19, 0) -> -0.001196909289 | E10: =_xlfn.IFS($B$2>=Inputs!$B$20, Stress!E10/('Creep of precast'!$F$37*1000), $B$2<Inputs!$B$20, 0) -> 0.0004116058896 | F10: =_xlfn.IFS($B$2>=Inputs!$B$21,Stress!F10/('Creep of precast'!$J$37*1000), $B$2<Inputs!$B$21, 0) -> 0.0001924848221 | G10: -0.0002119362648 | H10: 0.0009849730246 | I10: -0.0008160269765 | J10: -0.0004044210869
A11: =Inputs!$G$16 -> 0.5597488396 | B11: =Inputs!$G$9/2 -> 0.35 | C11: =_xlfn.IFS($B$2>=Inputs!$B$19, Stress!C11/('Creep of precast'!$B$37*1000), $B$2<Inputs!$B$19, 0) -> 0.0004388342574 | D11: =_xlfn.IFS($B$2>=Inputs!$B$19, Stress!D11/('Creep of precast'!$B$37*1000), $B$2<Inputs!$B$19, 0) -> -0.00130582215 | E11: =_xlfn.IFS($B$2>=Inputs!$B$20, Stress!E11/('Creep of precast'!$F$37*1000), $B$2<Inputs!$B$20, 0) -> 0.0004742324828 | F11: =_xlfn.IFS($B$2>=Inputs!$B$21,Stress!F11/('Creep of precast'!$J$37*1000), $B$2<Inputs!$B$21, 0) -> 0.0002098096005 | G11: =SUM(C11:F11) -> -0.0001829458095 | H11: 0.001122876341 | I11: -0.0008669878927 | J11: -0.00039275541
A12: =Inputs!$G$16 -> 0.5597488396 | B12: =Inputs!$G$9/2 -> 0.35 | C12: 0 | D12: 0 | E12: 0 | F12: 0 | G12: =SUM(C12:F12) -> 0 | H12: 0 | I12: 0 | J12: 0

Sheet Output
A1: Output
A2: time | B2: 365 | C2: days
A4: Glob. | B4: Precast | I4: Slab | L4: Strain | P4: Strain (without prestressing) | U4: Modulus of elasticity (precast) (t0 = 3 days)
A5: Time | B5: Time | C5: ϕ (t,3) | D5: E (t,3) | E5: ϕ (t,28) | F5: E (t,28) | G5: ϕ (t,56) | H5: E (t,56) | I5: Time | J5: ='Creep of slab'!A5 -> ϕ (t,28) | K5: E (t,28) | L5: Point 1 | M5: Point 2 | N5: Point 3 | O5: Point 4 | P5: Point 1 | Q5: Point 2 | R5: Point 3 | S5: Point 4 | U5: Ec (t) | V5: Ec (t) | W5: Ec,eff (t) | X5: Ecm,eff(t) | Y5: Ec (t) | Z5: Ec (t) | AA5: Ec,eff,fin (t)
A6: 0 | B6: 0 | C6: 0 | D6: 0 | E6: 0 | F6: 0 | G6: 0 | H6: 0 | I6: 0 | J6: 0 | K6: 0 | L6: 0 | M6: 0 | N6: 0 | O6: 0 | P6: 0 | Q6: 0 | R6: 0 | S6: 0 | U6: 0 | V6: 0 | W6: 0 | X6: 0 | Y6: 0 | Z6: 0 | AA6: 0
A7: 1 | B7: 1 | C7: 0 | D7: 28.60060168 | E7: 0 | F7: 28.60060168 | G7: 0 | H7: 28.60060168 | I7: -27 | J7: 0 | K7: 0 | L7: 0 | M7: 0 | N7: 0 | O7: 0 | P7: 0 | Q7: 0 | R7: 0 | S7: 0 | U7: 28.60060168 | V7: 28.60060168 | W7: 28.60060168 | X7: 37 | Y7: 28.60060168 | Z7: 28.60060168 | AA7: 28.60060168
A8: 2 | B8: 2 | C8: 0 | D8: 31.38777448 | E8: 0 | F8: 31.38777448 | G8: 0 | H8: 31.38777448 | I8: -26 | J8: 0 | K8: 0 | L8: 0 | M8: 0 | N8: 0 | O8: 0 | P8: 0 | Q8: 0 | R8: 0 | S8: 0 | U8: 31.38777448 | V8: 31.38777448 | W8: 31.38777448 | X8: 37 | Y8: 31.38777448 | Z8: 31.38777448 | AA8: 31.38777448
A9: 3 | B9: 3 | C9: 0 | D9: 32.70784263 | E9: 0 | F9: 32.70784263 | G9: 0 | H9: 32.70784263 | I9: -25 | J9: 0 | K9: 0 | L9: 0 | M9: 0 | N9: -3.997200225e-05 | O9: -0.0003640376986 | P9: 0 | Q9: 0 | R9: -0.0001842611811 | S9: 0.0001842611811 | U9: 32.70784263 | V9: 32.70784263 | W9: 32.70784263 | X9: 37 | Y9: 32.70784263 | Z9: 32.70784263 | AA9: 32.70784263
A10: 4 | B10: 4 | C10: 0.2688295318 | D10: 25.7779645 | E10: 0 | F10: 33.52102433 | G10: 0 | H10: 33.52102433 | I10: -24 | J10: 0 | K10: 0 | L10: 0 | M10: 0 | N10: -5.07176569e-05 | O10: -0.0004619017826 | P10: 0 | Q10: 0 | R10: -0.0002337960282 | S10: 0.0002337960282 | U10: 33.52102433 | V10: 33.52102433 | W10: 26.41885572 | X10: 29.16073363 | Y10: 26.41885572 | Z10: 32.70784263 | AA10: 25.7779645
A11: 5 | B11: 5 | C11: 0.3308181194 | D11: 24.57724474 | E11: 0 | F11: 34.0875426 | G11: 0 | H11: 34.0875426 | I11: -23 | J11: 0 | K11: 0 | L11: 0 | M11: 0 | N11: -5.319546487e-05 | O11: -0.0004844679654 | P11: 0 | Q11: 0 | R11: -0.0002452181185 | S11: 0.0002452181185 | U11: 34.0875426 | V11: 34.0875426 | W11: 25.61397542 | X11: 27.80244683 | Y11: 25.61397542 | Z11: 32.70784263 | AA11: 24.57724474
A12: 6 | B12: 6 | C12: 0.3734395207 | D12: 23.8145489 | E12: 0 | F12: 34.51186226 | G12: 0 | H12: 34.51186226 | I12: -22 | J12: 0 | K12: 0 | L12: 0 | M12: 0 | N12: -5.489912762e-05 | O12: -0.0004999837622 | P12: 0 | Q12: 0 | R12: -0.0002530715883 | S12: 0.0002530715883 | U12: 34.51186226 | V12: 34.51186226 | W12: 25.12805387 | X12: 26.93966457 | Y12: 25.12805387 | Z12: 32.70784263 | AA12: 23.8145489
A13: 7 | B13: 7 | C13: 0.4069169721 | D13: 23.24788404 | E13: 0 | F13: 34.84528774 | G13: 0 | H13: 34.84528774 | I13: -21 | J13: 0 | K13: 0 | L13: 0 | M13: 0 | N13: -5.623728838e-05 | O13: -0.0005121708166 | P13: 0 | Q13: 0 | R13: -0.000259240183 | S13: 0.000259240183 | U13: 34.84528774 | V13: 34.84528774 | W13: 24.76712445 | X13: 26.2986379 | Y13: 24.76712445 | Z13: 32.70784263 | AA13: 23.24788404
A14: 8 | B14: 8 | C14: 0.4348935926 | D14: 22.79461195 | E14: 0 | F14: 35.11639766 | G14: 0 | H14: 35.11639766 | I14: -20 | J14: 0 | K14: 0 | L14: 0 | M14: 0 | N14: -5.735556991e-05 | O14: -0.0005223553611 | P14: 0 | Q14: 0 | R14: -0.0002643951881 | S14: 0.0002643951881 | U14: 35.11639766 | V14: 35.11639766 | W14: 24.47317197 | X14: 25.78588419 | Y14: 24.47317197 | Z14: 32.70784263 | AA14: 22.79461195
A15: 9 | B15: 9 | C15: 0.4591365618 | D15: 22.4158886 | E15: 0 | F15: 35.34255847 | G15: 0 | H15: 35.34255847 | I15: -19 | J15: 0 | K15: 0 | L15: 0 | M15: 0 | N15: -5.832460993e-05 | O15: -0.0005311807158 | P15: 0 | Q15: 0 | R15: -0.0002688622263 | S15: 0.0002688622263 | U15: 35.34255847 | V15: 35.34255847 | W15: 24.22155636 | X15: 25.35746206 | Y15: 24.22155636 | Z15: 32.70784263 | AA15: 22.4158886
A16: 10 | B16: 10 | C16: 0.4806519431 | D16: 22.0901629 | E16: 0 | F16: 35.53502072 | G16: 0 | H16: 35.53502072 | I16: -18 | J16: 0 | K16: 0 | L16: 0 | M16: 0 | N16: -5.91846228e-05 | O16: -0.0005390131257 | P16: 0 | Q16: 0 | R16: -0.0002728266759 | S16: 0.0002728266759 | U16: 35.53502072 | V16: 35.53502072 | W16: 23.99957727 | X16: 24.9889923 | Y16: 23.99957727 | Z16: 32.70784263 | AA16: 22.0901629
A17: 11 | B17: 11 | C17: 0.5000729533 | D17: 21.80416796 | E17: 0 | F17: 35.70144015 | G17: 0 | H17: 35.70144015 | I17: -17 | J17: 0 | K17: 0 | L17: 0 | M17: 0 | N17: -5.996091947e-05 | O17: -0.0005460831056 | P17: 0 | Q17: 0 | R17: -0.0002764052141 | S17: 0.0002764052141 | U17: 35.70144015 | V17: 35.70144015 | W17: 23.79980259 | X17: 24.66546705 | Y17: 23.79980259 | Z17: 32.70784263 | AA17: 21.80416796
A18: 12 | B18: 12 | C18: 0.5178267647 | D18: 21.5491276 | E18: 0 | F18: 35.84723362 | G18: 0 | H18: 35.84723362 | I18: -16 | J18: 0 | K18: 0 | L18: 0 | M18: 0 | N18: -6.067057486e-05 | O18: -0.0005525461622 | P18: 0 | Q18: 0 | R18: -0.0002796765524 | S18: 0.0002796765524 | U18: 35.84723362 | V18: 35.84723362 | W18: 23.61747365 | X18: 24.37695847 | Y18: 23.61747365 | Z18: 32.70784263 | AA18: 21.5491276
A19: 13 | B19: 13 | C19: 0.5342166287 | D19: 21.31892069 | E19: 0 | F19: 35.97635749 | G19: 0 | H19: 35.97635749 | I19: -15 | J19: 0 | K19: 0 | L19: 0 | M19: 0 | N19: -6.132571054e-05 | O19: -0.0005585126906 | P19: 0 | Q19: 0 | R19: -0.0002826965681 | S19: 0.0002826965681 | U19: 35.97635749 | V19: 35.97635749 | W19: 23.44933357 | X19: 24.11654216 | Y19: 23.44933357 | Z19: 32.70784263 | AA19: 21.31892069
A20: 14 | B20: 14 | C20: 0.549466423 | D20: 21.10910062 | E20: 0 | F20: 36.09177857 | G20: 0 | H20: 36.09177857 | I20: -14 | J20: 0 | K20: 0 | L20: 0 | M20: 0 | N20: -6.193527535e-05 | O20: -0.0005640641906 | P20: 0 | Q20: 0 | R20: -0.0002855065132 | S20: 0.0002855065132 | U20: 36.09177857 | V20: 36.09177857 | W20: 23.2930369 | X20: 23.87918799 | Y20: 23.2930369 | Z20: 32.70784263 | AA20: 21.10910062
A21: 15 | B21: 15 | C21: 0.5637466395 | D21: 20.9163312 | E21: 0 | F21: 36.19577164 | G21: 0 | H21: 36.19577164 | I21: -13 | J21: 0 | K21: 0 | L21: 0 | M21: 0 | N21: -6.25060842e-05 | O21: -0.0005692627278 | P21: 0 | Q21: 0 | R21: -0.0002881378028 | S21: 0.0002881378028 | U21: 36.19577164 | V21: 36.19577164 | W21: 23.14682617 | X21: 23.66112199 | Y21: 23.14682617 | Z21: 32.70784263 | AA21: 20.9163312
A22: 16 | B22: 16 | C22: 0.5771904342 | D22: 20.73804274 | E22: 0 | F22: 36.29011439 | G22: 0 | H22: 36.29011439 | I22: -12 | J22: 0 | K22: 0 | L22: 0 | M22: 0 | N22: -6.304345959e-05 | O22: -0.0005741567759 | P22: 0 | Q22: 0 | R22: -0.0002906149723 | S22: 0.0002906149723 | U22: 36.29011439 | V22: 36.29011439 | W22: 23.00934218 | X22: 23.45943724 | Y22: 23.00934218 | Z22: 32.70784263 | AA22: 20.73804274
A23: 17 | B23: 17 | C23: 0.5899040038 | D23: 20.57221225 | E23: 0 | F23: 36.37621907 | G23: 0 | H23: 36.37621907 | I23: -11 | J23: 0 | K23: 0 | L23: 0 | M23: 0 | N23: -6.355164642e-05 | O23: -0.0005787849945 | P23: 0 | Q23: 0 | R23: -0.0002929575896 | S23: 0.0002929575896 | U23: 36.37621907 | V23: 36.37621907 | W23: 22.87950655 | X23: 23.27184529 | Y23: 22.87950655 | Z23: 32.70784263 | AA23: 20.57221225
A24: 18 | B24: 18 | C24: 0.601973552 | D24: 20.41721762 | E24: 0 | F24: 36.45522389 | G24: 0 | H24: 36.45522389 | I24: -10 | J24: 0 | K24: 0 | L24: 0 | M24: 0 | N24: -6.403409043e-05 | O24: -0.000583178765 | P24: 0 | Q24: 0 | R24: -0.0002951815388 | S24: 0.0002951815388 | U24: 36.45522389 | V24: 36.45522389 | W24: 22.75644554 | X24: 23.09651115 | Y24: 22.75644554 | Z24: 32.70784263 | AA24: 20.41721762
A25: 19 | B25: 19 | C25: 0.6134701176 | D25: 20.27173746 | E25: 0 | F25: 36.52805791 | G25: 0 | H25: 36.52805791 | I25: -9 | J25: 0 | K25: 0 | L25: 0 | M25: 0 | N25: -6.449363118e-05 | O25: -0.0005873639483 | P25: 0 | Q25: 0 | R25: -0.0002972999096 | S25: 0.0002972999096 | U25: 36.52805791 | V25: 36.52805791 | W25: 22.63943876 | X25: 22.93194004 | Y25: 22.63943876 | Z25: 32.70784263 | AA25: 20.27173746
A26: 20 | B26: 20 | C26: 0.6244530109 | D26: 20.13468066 | E26: 0 | F26: 36.59548804 | G26: 0 | H26: 36.59548804 | I26: -8 | J26: 0 | K26: 0 | L26: 0 | M26: 0 | N26: -6.493263941e-05 | O26: -0.0005913621355 | P26: 0 | Q26: 0 | R26: -0.0002993236305 | S26: 0.0002993236305 | U26: 36.59548804 | V26: 36.59548804 | W26: 22.52788341 | X26: 22.77689767 | Y26: 22.52788341 | Z26: 32.70784263 | AA26: 20.13468066
A27: 21 | B27: 21 | C27: 0.6349723174 | D27: 20.00513543 | E27: 0 | F27: 36.65815377 | G27: 0 | H27: 36.65815377 | I27: -7 | J27: 0 | K27: 0 | L27: 0 | M27: 0 | N27: -6.535311716e-05 | O27: -0.0005951915597 | P27: 0 | Q27: 0 | R27: -0.0003012619303 | S27: 0.0003012619303 | U27: 36.65815377 | V27: 36.65815377 | W27: 22.42126878 | X27: 22.63035258 | Y27: 22.42126878 | Z27: 32.70784263 | AA27: 20.00513543
A28: 22 | B28: 22 | C28: 0.6450707598 | D28: 19.88233177 | E28: 0 | F28: 36.7165932 | G28: 0 | H28: 36.7165932 | I28: -6 | J28: 0 | K28: 0 | L28: 0 | M28: 0 | N28: -6.575677212e-05 | O28: -0.0005988677734 | P28: 0 | Q28: 0 | R28: -0.0003031226812 | S28: 0.0003031226812 | U28: 36.7165932 | V28: 36.7165932 | W28: 22.31915739 | X28: 22.49143375 | Y28: 22.31915739 | Z28: 32.70784263 | AA28: 19.88233177
A29: 23 | B29: 23 | C29: 0.6547851059 | D29: 19.76561338 | E29: 0 | F29: 36.77126282 | G29: 0 | H29: 36.77126282 | I29: -5 | J29: 0 | K29: 0 | L29: 0 | M29: 0 | N29: -6.614507398e-05 | O29: -0.0006024041616 | P29: 0 | Q29: 0 | R29: -0.0003049126581 | S29: 0.0003049126581 | U29: 36.77126282 | V29: 36.77126282 | W29: 22.22117101 | X29: 22.35939873 | Y29: 22.22117101 | Z29: 32.70784263 | AA29: 19.76561338
A30: 24 | B30: 24 | C30: 0.6641472524 | D30: 19.65441615 | E30: 0 | F30: 36.82255281 | G30: 0 | H30: 36.82255281 | I30: -4 | J30: 0 | K30: 0 | L30: 0 | M30: 0 | N30: -6.651929772e-05 | O30: -0.0006058123358 | P30: 0 | Q30: 0 | R30: -0.0003066377383 | S30: 0.0003066377383 | U30: 36.82255281 | V30: 36.82255281 | W30: 22.12697991 | X30: 22.2336094 | Y30: 22.12697991 | Z30: 32.70784263 | AA30: 19.65441615
A31: 25 | B31: 25 | C31: 0.6731850687 | D31: 19.54825156 | E31: 0 | F31: 36.87079894 | G31: 0 | H31: 36.87079894 | I31: -3 | J31: 0 | K31: 0 | L31: 0 | M31: 0 | N31: -6.688055734e-05 | O31: -0.0006091024417 | P31: 0 | Q31: 0 | R31: -0.000308303057 | S31: 0.000308303057 | U31: 36.87079894 | V31: 36.87079894 | W31: 22.03629451 | X31: 22.11351314 | Y31: 22.03629451 | Z31: 32.70784263 | AA31: 19.54825156
A32: 26 | B32: 26 | C32: 0.6819230638 | D32: 19.44669369 | E32: 0 | F32: 36.91629196 | G32: 0 | H32: 36.91629196 | I32: -2 | J32: 0 | K32: 0 | L32: 0 | M32: 0 | N32: -6.722983249e-05 | O32: -0.0006122834013 | P32: 0 | Q32: 0 | R32: -0.0003099131303 | S32: 0.0003099131303 | U32: 36.91629196 | V32: 36.91629196 | W32: 21.94885887 | X32: 21.99862812 | Y32: 21.94885887 | Z32: 32.70784263 | AA32: 19.44669369
A33: 27 | B33: 27 | C33: 0.6903829185 | D33: 19.34936887 | E33: 0 | F33: 36.95928508 | G33: 0 | H33: 36.95928508 | I33: -1 | J33: 0 | K33: 0 | L33: 0 | M33: 0 | N33: -6.756798982e-05 | O33: -0.0006153631073 | P33: 0 | Q33: 0 | R33: -0.0003114719531 | S33: 0.0003114719531 | U33: 36.95928508 | V33: 36.95928508 | W33: 21.86444543 | X33: 21.88853164 | Y33: 21.86444543 | Z33: 32.70784263 | AA33: 19.34936887
A34: 28 | B34: 28 | C34: 0.6985839151 | D34: 19.25594746 | E34: 0 | F34: 37 | G34: 0 | H34: 37 | I34: 0 | J34: 0 | K34: 0 | L34: 0 | M34: 0 | N34: -0.0003005902292 | O34: -0.0003856541502 | P34: 0 | Q34: 0 | R34: -0.0005456775076 | S34: 0.0005456775076 | U34: 37 | V34: 37 | W34: 21.7828508 | X34: 21.7828508 | Y34: 21.7828508 | Z34: 32.70784263 | AA34: 19.25594746
A35: 29 | B35: 29 | C35: 0.7065432875 | D35: 19.16613711 | E35: 0.204831972 | F35: 30.70967642 | G35: 0 | H35: 37 | I35: 1 | J35: 0 | K35: 24.73565551 | L35: 0 | M35: 0 | N35: -0.0003485716401 | O35: -0.000340888403 | P35: 0 | Q35: 0 | R35: -0.0005948073697 | S35: 0.0005948073697 | U35: 37.03863179 | V35: 37 | W35: 21.70389234 | X35: 21.68125489 | Y35: 21.68125489 | Z35: 32.70784263 | AA35: 19.16613711
A36: 30 | B36: 30 | C36: 0.7142765083 | D36: 19.07967733 | E36: 0.2520635562 | F36: 29.55121552 | G36: 0 | H36: 37 | I36: 2 | J36: 0 | K36: 27.14618334 | L36: 0 | M36: 0 | N36: -0.0003598712789 | O36: -0.0003327130603 | P36: 0 | Q36: 0 | R36: -0.0006072228286 | S36: 0.0006072228286 | U36: 37.07535287 | V36: 37 | W36: 21.62740532 | X36: 21.58344924 | Y36: 21.58344924 | Z36: 32.70784263 | AA36: 19.07967733
A37: 31 | B37: 31 | C37: 0.7217975269 | D37: 18.996335 | E37: 0.2845385065 | F37: 28.804119 | G37: 0 | H37: 37 | I37: 3 | J37: 0 | K37: 28.28786389 | L37: 0 | M37: 0 | N37: -0.0003677286491 | O37: -0.0003278942546 | P37: 0 | Q37: 0 | R37: -0.0006161654004 | S37: 0.0006161654004 | U37: 37.11031625 | V37: 37 | W37: 21.55324054 | X37: 21.48917014 | Y37: 21.48917014 | Z37: 32.70784263 | AA37: 18.996335
A38: 32 | B38: 32 | C38: 0.7291189684 | D38: 18.91590066 | E38: 0.3100463156 | F38: 28.24327626 | G38: 0 | H38: 37 | I38: 4 | J38: 0 | K38: 28.99115618 | L38: 0 | M38: 0 | N38: -0.0003739568268 | O38: -0.0003246240103 | P38: 0 | Q38: 0 | R38: -0.0006234499829 | S38: 0.0006234499829 | U38: 37.14365832 | V38: 37 | W38: 21.48126242 | X38: 21.39818062 | Y38: 21.39818062 | Z38: 32.70784263 | AA38: 18.91590066
A39: 33 | B39: 33 | C39: 0.7362523002 | D39: 18.83818534 | E39: 0.3313628217 | F39: 27.79107197 | G39: 0 | H39: 37 | I39: 5 | J39: 0 | K39: 29.48111792 | L39: 0 | M39: 0 | N39: -0.0003792021926 | O39: -0.0003222605798 | P39: 0 | Q39: 0 | R39: -0.0006297246113 | S39: 0.0006297246113 | U39: 37.17550105 | V39: 37 | W39: 21.41134733 | X39: 21.31026694 | Y39: 21.31026694 | Z39: 32.70784263 | AA39: 18.83818534
A40: 34 | B40: 34 | C40: 0.7432079732 | D40: 18.76301803 | E40: 0.3498345095 | F40: 27.41076757 | G40: 0 | H40: 37 | I40: 6 | J40: 0 | K40: 29.84809709 | L40: 0 | M40: 0 | N40: -0.0003837784836 | O40: -0.0003204944481 | P40: 0 | Q40: 0 | R40: -0.0006353045307 | S40: 0.0006353045307 | U40: 37.20595391 | V40: 37 | W40: 21.34338213 | X40: 21.22523564 | Y40: 21.22523564 | Z40: 32.70784263 | AA40: 18.76301803
A41: 35 | B41: 35 | C41: 0.7499955411 | D41: 18.69024341 | E41: 0.366227939 | F41: 27.08186456 | G41: 0 | H41: 37 | I41: 7 | J41: 0 | K41: 30.13646507 | L41: 0 | M41: 0 | N41: -0.000387864456 | O41: -0.000319150719 | P41: 0 | Q41: 0 | R41: -0.0006403698757 | S41: 0.0006403698757 | U41: 37.2351155 | V41: 37 | W41: 21.27726307 | X41: 21.14291101 | Y41: 21.14291101 | Z41: 32.70784263 | AA41: 18.69024341
A42: 36 | B42: 36 | C42: 0.7566237635 | D42: 18.61972 | E42: 0.3810255835 | F42: 26.79168326 | G42: 0 | H42: 37 | I42: 8 | J42: 0 | K42: 30.37093851 | L42: 0 | M42: 0 | N42: -0.0003915727288 | O42: -0.0003181203123 | P42: 0 | Q42: 0 | R42: -0.0006450345292 | S42: 0.0006450345292 | U42: 37.26307487 | V42: 37 | W42: 21.21289467 | X42: 21.06313302 | Y42: 21.06313302 | Z42: 32.70784263 | AA42: 18.61972
A43: 37 | B43: 37 | C43: 0.7631006934 | D43: 18.55131857 | E43: 0.3945529224 | F43: 26.53180056 | G43: 0 | H43: 37 | I43: 9 | J43: 0 | K43: 30.56653706 | L43: 0 | M43: 0 | N43: -0.000394979361 | O43: -0.0003173304226 | P43: 0 | Q43: 0 | R43: -0.0006493757123 | S43: 0.0006493757123 | U43: 37.28991267 | V43: 37 | W43: 21.15018888 | X43: 20.98575546 | Y43: 20.98575546 | Z43: 32.70784263 | AA43: 18.55131857
A44: 38 | B44: 38 | C44: 0.7694337535 | D44: 18.48492071 | E44: 0.4070410153 | F44: 26.29631944 | G44: 0 | H44: 37 | I44: 10 | J44: 0 | K44: 30.7329909 | L44: 0 | M44: 0 | N44: -0.0003981384158 | O44: -0.0003167299856 | P44: 0 | Q44: 0 | R44: -0.0006534485591 | S44: 0.0006534485591 | U44: 37.31570218 | V44: 37 | W44: 21.08906429 | X44: 20.9106444 | Y44: 20.9106444 | Z44: 32.70784263 | AA44: 18.48492071
A45: 39 | B45: 39 | C45: 0.775629802 | D45: 18.4204177 | E45: 0.4186604435 | F45: 26.08094148 | G45: 0 | H45: 37 | I45: 11 | J45: 0 | K45: 30.87692121 | L45: 0 | M45: 0 | N45: -0.0004010898605 | O45: -0.0003162818046 | P45: 0 | Q45: 0 | R45: -0.0006572940265 | S45: 0.0006572940265 | U45: 37.34051013 | V45: 37 | W45: 21.02944549 | X45: 20.83767684 | Y45: 20.83767684 | Z45: 32.70784263 | AA45: 18.4204177
A46: 40 | B46: 40 | C46: 0.7816951898 | D46: 18.35770945 | E46: 0.4295411116 | F46: 25.88243157 | G46: 0 | H46: 37 | I46: 12 | J46: 0 | K46: 31.00301286 | L46: 0 | M46: 0 | N46: -0.000403864177 | O46: -0.0003159579636 | P46: 0 | Q46: 0 | R46: -0.0006609435129 | S46: 0.0006609435129 | U46: 37.36439744 | V46: 37 | W46: 20.97126246 | X46: 20.76673957 | Y46: 20.76673957 | Z46: 32.70784263 | AA46: 18.35770945
A47: 41 | B47: 41 | C47: 0.7876358109 | D47: 18.29670363 | E47: 0.4397844765 | F47: 25.69829068 | G47: 0 | H47: 37 | I47: 13 | J47: 0 | K47: 31.11468756 | L47: 0 | M47: 0 | N47: -0.0004064852095 | O47: -0.0003157369996 | P47: 0 | Q47: 0 | R47: -0.0006644217127 | S47: 0.0006644217127 | U47: 37.38741986 | V47: 37 | W47: 20.91445004 | X47: 20.69772813 | Y47: 20.69772813 | Z47: 32.70784263 | AA47: 18.29670363
A48: 42 | B48: 42 | C48: 0.7934571462 | D48: 18.23731484 | E48: 0.4494714536 | F48: 25.52654618 | G48: 0 | H48: 37 | I48: 14 | J48: 0 | K48: 31.21451119 | L48: 0 | M48: 0 | N48: -0.0004089720055 | O48: -0.0003156020795 | P48: 0 | Q48: 0 | R48: -0.0006677484645 | S48: 0.0006677484645 | U48: 37.4096285 | V48: 37 | W48: 20.85894752 | X48: 20.63054591 | Y48: 20.63054591 | Z48: 32.70784263 | AA48: 18.23731484
A49: 43 | B49: 43 | C49: 0.7991643024 | D49: 18.17946398 | E49: 0.4586677251 | F49: 25.36561231 | G49: 0 | H49: 37 | I49: 15 | J49: 0 | K49: 31.30445115 | L49: 0 | M49: 0 | N49: -0.0004113400531 | O49: -0.0003155397784 | P49: 0 | Q49: 0 | R49: -0.0006709399929 | S49: 0.0006709399929 | U49: 37.43107035 | V49: 37 | W49: 20.80469822 | X49: 20.56510345 | Y49: 20.56510345 | Z49: 32.70784263 | AA49: 18.17946398
A50: 44 | B50: 44 | C50: 0.8047620461 | D50: 18.12307761 | E50: 0.4674274182 | F50: 25.21419427 | G50: 0 | H50: 37 | I50: 16 | J50: 0 | K50: 31.38604488 | L50: 0 | M50: 0 | N50: -0.0004136021379 | O50: -0.0003155392364 | P50: 0 | Q50: 0 | R50: -0.0006740097716 | S50: 0.0006740097716 | U50: 37.45178868 | V50: 37 | W50: 20.75164909 | X50: 20.50131766 | Y50: 20.50131766 | Z50: 32.70784263 | AA50: 18.12307761
A51: 45 | B51: 45 | C51: 0.8102548345 | D51: 18.06808743 | E51: 0.4757957239 | F51: 25.0712205 | G51: 0 | H51: 37 | I51: 17 | J51: 0 | K51: 31.46051379 | L51: 0 | M51: 0 | N51: -0.0004157689538 | O51: -0.0003155915603 | P51: 0 | Q51: 0 | R51: -0.0006769691374 | S51: 0.0006769691374 | U51: 37.47182339 | V51: 37 | W51: 20.69975049 | X51: 20.43911128 | Y51: 20.43911128 | Z51: 32.70784263 | AA51: 18.06808743
A52: 46 | B52: 46 | C52: 0.8156468418 | D52: 18.01442983 | E52: 0.4838108043 | F52: 24.93579363 | G52: 0 | H52: 37 | I52: 18 | J52: 0 | K52: 31.52884229 | L52: 0 | M52: 0 | N52: -0.0004178495477 | O52: -0.0003156893897 | P52: 0 | Q52: 0 | R52: -0.0006798277396 | S52: 0.0006798277396 | U52: 37.4912114 | V52: 37 | W52: 20.64895581 | X52: 20.37841234 | Y52: 20.37841234 | Z52: 32.70784263 | AA52: 18.01442983
A53: 47 | B53: 47 | C53: 0.820941984 | D53: 17.96204542 | E53: 0.4915052114 | F53: 24.80715436 | G53: 0 | H53: 37 | I53: 19 | J53: 0 | K53: 31.59183387 | L53: 0 | M53: 0 | N53: -0.0004198516508 | O53: -0.0003158265754 | P53: 0 | Q53: 0 | R53: -0.0006825938744 | S53: 0.0006825938744 | U53: 37.50998685 | V53: 37 | W53: 20.59922127 | X53: 20.31915367 | Y53: 20.31915367 | Z53: 32.70784263 | AA53: 17.96204542
A54: 48 | B54: 48 | C54: 0.8261439396 | D54: 17.91087872 | E54: 0.4989069602 | F54: 24.68465421 | G54: 0 | H54: 37 | I54: 20 | J54: 0 | K54: 31.65015182 | L54: 0 | M54: 0 | N54: -0.0004217819291 | O54: -0.0003159979376 | P54: 0 | Q54: 0 | R54: -0.0006852747386 | S54: 0.0006852747386 | U54: 37.52818144 | V54: 37 | W54: 20.5505057 | X54: 20.26127251 | Y54: 20.26127251 | Z54: 32.70784263 | AA54: 17.91087872
A55: 49 | B55: 49 | C55: 0.8312561696 | D55: 17.86087778 | E55: 0.5060403541 | F55: 24.56773479 | G55: 0 | H55: 37 | I55: 21 | J55: 0 | K55: 31.70434921 | L55: 0 | M55: 0 | N55: -0.0004236461762 | O55: -0.0003161990811 | P55: 0 | Q55: 0 | R55: -0.0006878766252 | S55: 0.0006878766252 | U55: 37.54582458 | V55: 37 | W55: 20.50277029 | X55: 20.20471009 | Y55: 20.20471009 | Z55: 32.70784263 | AA55: 17.86087778
A56: 50 | B56: 50 | C56: 0.8362819347 | D56: 17.8119939 | E56: 0.5129266278 | F56: 24.45591169 | G56: 0 | H56: 37 | I56: 22 | J56: 0 | K56: 31.75489142 | L56: 0 | M56: 0 | N56: -0.0004254494636 | O56: -0.0003164262515 | P56: 0 | Q56: 0 | R56: -0.0006904050761 | S56: 0.0006904050761 | U56: 37.56294368 | V56: 37 | W56: 20.45597845 | X56: 20.14941132 | Y56: 20.14941132 | Z56: 32.70784263 | AA56: 17.8119939
A57: 51 | B57: 51 | C57: 0.8412243104 | D57: 17.76418139 | E57: 0.5195844557 | F57: 24.34876184 | G57: 0 | H57: 37 | I57: 23 | J57: 0 | K57: 31.80217325 | L57: 0 | M57: 0 | N57: -0.0004271962597 | O57: -0.0003166762231 | P57: 0 | Q57: 0 | R57: -0.0006928650036 | S57: 0.0006928650036 | U57: 37.57956423 | V57: 37 | W57: 20.41009562 | X57: 20.0953245 | Y57: 20.0953245 | Z57: 32.70784263 | AA57: 17.76418139
A58: 52 | B58: 52 | C58: 0.8460862019 | D58: 17.71739727 | E58: 0.5260303573 | F58: 24.24591347 | G58: 0 | H58: 37 | I58: 24 | J58: 0 | K58: 31.84653216 | L58: 0 | M58: 0 | N58: -0.0004288905246 | O58: -0.0003169462095 | P58: 0 | Q58: 0 | R58: -0.0006952607868 | S58: 0.0006952607868 | U58: 37.59571005 | V58: 37 | W58: 20.36508913 | X58: 20.04240103 | Y58: 20.04240103 | Z58: 32.70784263 | AA58: 17.71739727
A59: 53 | B59: 53 | C59: 0.8508703561 | D59: 17.6716011 | E59: 0.5322790247 | F59: 24.14703811 | G59: 0 | H59: 37 | I59: 25 | J59: 0 | K59: 31.88825854 | L59: 0 | M59: 0 | N59: -0.0004305357869 | O59: -0.0003172337919 | P59: 0 | Q59: 0 | R59: -0.0006975963508 | S59: 0.0006975963508 | U59: 37.61140337 | V59: 37 | W59: 20.32092807 | X59: 19.99059517 | Y59: 19.99059517 | Z59: 32.70784263 | AA59: 17.6716011
A60: 54 | B60: 54 | C60: 0.8555793738 | D60: 17.6267548 | E60: 0.5383435889 | F60: 24.05184399 | G60: 0 | H60: 37 | I60: 26 | J60: 0 | K60: 31.92760385 | L60: 0 | M60: 0 | N60: -0.0004321352061 | O60: -0.0003175368615 | P60: 0 | Q60: 0 | R60: -0.0006998752303 | S60: 0.0006998752303 | U60: 37.626665 | V60: 37 | W60: 20.27758313 | X60: 19.93986381 | Y60: 19.93986381 | Z60: 32.70784263 | AA60: 17.6267548
A61: 55 | B61: 55 | C61: 0.8602157197 | D61: 17.5828224 | E61: 0.544235839 | F61: 23.96007078 | G61: 0 | H61: 37 | I61: 27 | J61: 0 | K61: 31.96478709 | L61: 0 | M61: 0 | N61: -0.0004336916239 | O61: -0.0003178535725 | P61: 0 | Q61: 0 | R61: -0.0007021006226 | S61: 0.0007021006226 | U61: 37.64151443 | V61: 37 | W61: 20.23502653 | X61: 19.89016629 | Y61: 19.89016629 | Z61: 32.70784263 | AA61: 17.5828224
A62: 56 | B62: 56 | C62: 0.8647817326 | D62: 17.53976997 | E62: 0.5499664039 | F62: 23.87148515 | G62: 0 | H62: 37 | I62: 28 | J62: 0 | K62: 32 | L62: -5.214209926e-05 | M62: -1.753014687e-05 | N62: -0.000452737754 | O62: -0.0002260784842 | P62: -5.214209926e-05 | Q62: -1.753014687e-05 | R62: -0.000721805579 | S62: 0.0007339747321 | U62: 37.65596994 | V62: 37 | W62: 20.19323188 | X62: 19.84146421 | Y62: 19.84146421 | Z62: 32.70784263 | AA62: 17.53976997
A63: 57 | B63: 57 | C63: 0.8692796333 | D63: 17.4975654 | E63: 0.555544903 | F63: 23.78587717 | G63: 0.1821709092 | H63: 31.29835095 | I63: 29 | J63: 0.3482777863 | K63: 23.73398147 | L63: -6.772629186e-05 | M63: -2.486193619e-05 | N63: -0.0004615474191 | O63: -0.0002080580426 | P63: -6.772629186e-05 | Q63: -2.486193619e-05 | R63: -0.0007312642424 | S63: 0.0007459052563 | U63: 37.67004868 | V63: 37 | W63: 20.15217414 | X63: 19.79372125 | Y63: 19.79372125 | Z63: 32.70784263 | AA63: 17.4975654
A64: 58 | B64: 58 | C64: 0.8737115333 | D64: 17.45617831 | E64: 0.5609800738 | F64: 23.70305721 | G64: 0.2241771476 | H64: 30.22438384 | I64: 30 | J64: 0.4285427474 | K64: 22.40044973 | L64: -7.129466849e-05 | M64: -2.653649625e-05 | N64: -0.000464663865 | O64: -0.0002041957702 | P64: -7.129466849e-05 | Q64: -2.653649625e-05 | R64: -0.0007350201636 | S64: 0.000750525852 | U64: 37.68376679 | V64: 37 | W64: 20.11182945 | X64: 19.74690305 | Y64: 19.74690305 | Z64: 32.70784263 | AA64: 17.45617831
A65: 59 | B65: 59 | C65: 0.8780794417 | D65: 17.41557993 | E65: 0.5662798793 | F65: 23.62285342 | G65: 0.2530593145 | H65: 29.5277323 | I65: 31 | J65: 0.4837058571 | K65: 21.56761722 | L65: -7.374331791e-05 | M65: -2.768471761e-05 | N65: -0.0004672199156 | O65: -0.0002016714696 | P65: -7.374331791e-05 | Q65: -2.768471761e-05 | R65: -0.0007382064561 | S65: 0.0007543121025 | U65: 37.69713945 | V65: 37 | W65: 20.07217512 | X65: 19.70097706 | Y65: 19.70097706 | Z65: 32.70784263 | AA65: 17.41557993
A66: 60 | B66: 60 | C66: 0.8823852722 | D66: 17.37574295 | E66: 0.5714515987 | F66: 23.54510952 | G66: 0.2757451323 | H66: 29.00265818 | I66: 32 | J66: 0.5270153056 | K66: 20.95591307 | L66: -7.566387438e-05 | M66: -2.858479566e-05 | N66: -0.0004694955367 | O66: -0.0001997819877 | P66: -7.566387438e-05 | Q66: -2.858479566e-05 | R66: -0.0007411033619 | S66: 0.0007576726835 | U66: 37.71018094 | V66: 37 | W66: 20.03318954 | X66: 19.65591239 | Y66: 19.65591239 | Z66: 32.70784263 | AA66: 17.37574295
A67: 61 | B67: 61 | C67: 0.8866308489 | D67: 17.33664148 | E67: 0.5765019064 | F67: 23.469683 | G67: 0.294703341 | H67: 28.57797522 | I67: 33 | J67: 0.5631925917 | K67: 20.47092608 | L67: -7.72669747e-05 | M67: -2.933574343e-05 | N67: -0.0004715913671 | O67: -0.0001982760043 | P67: -7.72669747e-05 | Q67: -2.933574343e-05 | R67: -0.0007438117831 | S67: 0.0007607586325 | U67: 37.72290477 | V67: 37 | W67: 19.99485209 | X67: 19.61167974 | Y67: 19.61167974 | Z67: 32.70784263 | AA67: 17.33664148
A68: 62 | B68: 62 | C68: 0.890817912 | D68: 17.29825089 | E68: 0.5814369383 | F68: 23.39644351 | G68: 0.3111314608 | H68: 28.21990098 | I68: 34 | J68: 0.5945281836 | K68: 20.06863242 | L68: -7.86547263e-05 | M68: -2.998554728e-05 | N68: -0.0004735568907 | O68: -0.0001970311988 | P68: -7.86547263e-05 | Q68: -2.998554728e-05 | R68: -0.0007463814546 | S68: 0.0007636454899 | U68: 37.73532364 | V68: 37 | W68: 19.9571431 | X68: 19.56825127 | Y68: 19.56825127 | Z68: 32.70784263 | AA68: 17.29825089
A69: 63 | B69: 63 | C69: 0.8949481235 | D69: 17.26054778 | E69: 0.5862623501 | F69: 23.32527151 | G69: 0.325711245 | H69: 27.90954677 | I69: 35 | J69: 0.6223261656 | K69: 19.72476354 | L69: -7.988522943e-05 | M69: -3.056150713e-05 | N69: -0.0004754207898 | O69: -0.0001959776678 | P69: -7.988522943e-05 | Q69: -3.056150713e-05 | R69: -0.0007488412985 | S69: 0.000766377525 | U69: 37.74744958 | V69: 37 | W69: 19.92004378 | X69: 19.52560049 | Y69: 19.52560049 | Z69: 32.70784263 | AA69: 17.26054778
A70: 64 | B70: 64 | C70: 0.8990230713 | D70: 17.22350988 | E70: 0.5909833673 | F70: 23.25605708 | G70: 0.3388717898 | H70: 27.6352077 | I70: 36 | J70: 0.6474073981 | K70: 19.42446054 | L70: -8.099503686e-05 | M70: -3.108079573e-05 | N70: -0.0004772015166 | O70: -0.0001950712299 | P70: -8.099503686e-05 | Q70: -3.108079573e-05 | R70: -0.0007512099962 | S70: 0.0007689834111 | U70: 37.75929396 | V70: 37 | W70: 19.88353619 | X70: 19.4837022 | Y70: 19.4837022 | Z70: 32.70784263 | AA70: 17.22350988
A71: 65 | B71: 65 | C71: 0.903044274 | D71: 17.18711597 | E71: 0.5956048288 | F71: 23.18869894 | G71: 0.3509025661 | H71: 27.38909595 | I71: 37 | J71: 0.6703256858 | K71: 19.15794044 | L71: -8.200879831e-05 | M71: -3.155499226e-05 | N71: -0.000478911837 | O71: -0.0001942819476 | P71: -8.200879831e-05 | Q71: -3.155499226e-05 | R71: -0.0007535005327 | S71: 0.0007714830584 | U71: 37.77086753 | V71: 37 | W71: 19.84760315 | X71: 19.44253242 | Y71: 19.44253242 | Z71: 32.70784263 | AA71: 17.18711597
A72: 66 | B72: 66 | C72: 0.907013185 | D72: 17.15134582 | E72: 0.6001312257 | F72: 23.12310353 | G72: 0.3620090707 | H72: 27.16575153 | I72: 38 | J72: 0.6914742106 | K72: 18.91840845 | L72: -8.294400723e-05 | M72: -3.199231334e-05 | N72: -0.0004805610707 | O72: -0.0001935884698 | P72: -8.294400723e-05 | Q72: -3.199231334e-05 | R72: -0.0007557224373 | S72: 0.0007738910211 | U72: 37.78218049 | V72: 37 | W72: 19.81222825 | X72: 19.40206827 | Y72: 19.40206827 | Z72: 32.70784263 | AA72: 17.15134582
A73: 67 | B73: 67 | C73: 0.9109311963 | D73: 17.11618016 | E73: 0.6045667338 | F73: 23.05918428 | G73: 0.3723430131 | H73: 26.96118947 | I73: 39 | J73: 0.7111432667 | K73: 18.70094727 | L73: -8.381357462e-05 | M73: -3.239882267e-05 | N73: -0.0004821563089 | O73: -0.0001929749601 | P73: -8.381357462e-05 | Q73: -3.239882267e-05 | R73: -0.000757883002 | S73: 0.0007762183675 | U73: 37.79324249 | V73: 37 | W73: 19.77739573 | X73: 19.36228791 | Y73: 19.36228791 | Z73: 32.70784263 | AA73: 17.11618016
A74: 68 | B74: 68 | C74: 0.9147996418 | D74: 17.08160056 | E74: 0.6089152444 | F74: 22.99686085 | G74: 0.3820199262 | H74: 26.77240704 | I74: 40 | J74: 0.7295539438 | K74: 18.50188028 | L74: -8.462733029e-05 | M74: -3.277913644e-05 | N74: -0.0004837031263 | O74: -0.0001924293021 | P74: -8.462733029e-05 | Q74: -3.277913644e-05 | R74: -0.0007599879944 | S74: 0.000778473783 | U74: 37.8040627 | V74: 37 | W74: 19.74309054 | X74: 19.32317052 | Y74: 19.32317052 | Z74: 32.70784263 | AA74: 17.08160056
A75: 69 | B75: 69 | C75: 0.9186198011 | D75: 17.04758942 | E75: 0.6131803893 | F75: 22.93605864 | G75: 0.3911300426 | H75: 26.59708213 | I75: 41 | J75: 0.7468789301 | K75: 18.31838455 | L75: -8.539294969e-05 | M75: -3.313685886e-05 | N75: -0.0004852060236 | O75: -0.0001919419894 | P75: -8.539294969e-05 | Q75: -3.313685886e-05 | R75: -0.0007620420993 | S75: 0.0007806642589 | U75: 37.81464983 | V75: 37 | W75: 19.70929822 | X75: 19.28469621 | Y75: 19.28469621 | Z75: 32.70784263 | AA75: 17.04758942
A76: 70 | B76: 70 | C76: 0.9223929016 | D76: 17.01412994 | E76: 0.6173655644 | F76: 22.87670816 | G76: 0.3997453257 | H76: 26.43337993 | I76: 42 | J76: 0.7632559623 | K76: 18.14824432 | L76: -8.611655299e-05 | M76: -3.347486361e-05 | N76: -0.0004866687137 | O76: -0.0001915054069 | P76: -8.611655299e-05 | Q76: -3.347486361e-05 | R76: -0.0007640492069 | S76: 0.0007827955422 | U76: 37.82501214 | V76: 37 | W76: 19.6760049 | X76: 19.24684593 | Y76: 19.24684593 | Z76: 32.70784263 | AA76: 17.01412994
A77: 71 | B77: 71 | C77: 0.9261201225 | D77: 16.98120602 | E77: 0.6214739505 | F77: 22.81874463 | G77: 0.4079241912 | H77: 26.27982404 | I77: 43 | J77: 0.7787968562 | K77: 17.98968774 | L77: -8.680310725e-05 | M77: -3.379548281e-05 | N77: -0.0004880943159 | O77: -0.000191113347 | P77: -8.680310725e-05 | Q77: -3.379548281e-05 | R77: -0.0007660126068 | S77: 0.0007848724413 | U77: 37.83515751 | V77: 37 | W77: 19.64319726 | X77: 19.2096015 | Y77: 19.2096015 | Z77: 32.70784263 | AA77: 16.98120602
A78: 72 | B78: 72 | C78: 0.9298025963 | D78: 16.94880227 | E78: 0.625508531 | F78: 22.76210755 | G78: 0.415714778 | H78: 26.13520786 | I78: 44 | J78: 0.793593765 | K78: 17.84127522 | L78: -8.745670501e-05 | M78: -3.410063784e-05 | N78: -0.0004894854912 | O78: -0.0001907606743 | P78: -8.745670501e-05 | Q78: -3.410063784e-05 | R78: -0.0007679351232 | S78: 0.0007868990398 | U78: 37.8450934 | V78: 37 | W78: 19.61086252 | X78: 19.1729455 | Y78: 19.1729455 | Z78: 32.70784263 | AA78: 16.94880227
A79: 73 | B79: 73 | C79: 0.9334414122 | D79: 16.91690393 | E79: 0.629472109 | F79: 22.7067403 | G79: 0.4231572775 | H79: 25.99853199 | I79: 45 | J79: 0.8077236338 | K79: 17.7018209 | L79: -8.808076257e-05 | M79: -3.439193253e-05 | N79: -0.0004908445392 | O79: -0.0001904430853 | P79: -8.808076257e-05 | Q79: -3.439193253e-05 | R79: -0.0007698192129 | S79: 0.0007888788503 | U79: 37.85482696 | V79: 37 | W79: 19.57898839 | X79: 19.13686123 | Y79: 19.13686123 | Z79: 32.70784263 | AA79: 16.91690393
A80: 74 | B80: 74 | C80: 0.9370376176 | D80: 16.88549687 | E80: 0.6333673216 | F80: 22.65258984 | G80: 0.4302856299 | H80: 25.86895878 | I80: 46 | J80: 0.8212514461 | K80: 17.57033608 | L80: -8.867816449e-05 | M80: -3.4670721e-05 | N80: -0.0004921734695 | O80: -0.000190156934 | P80: -8.867816449e-05 | Q80: -3.4670721e-05 | R80: -0.0007716670367 | S80: 0.0007908149282 | U80: 37.86436497 | V80: 37 | W80: 19.54756305 | X80: 19.10133271 | Y80: 19.10133271 | Z80: 32.70784263 | AA80: 16.88549687
A81: 75 | B81: 75 | C81: 0.9405922209 | D81: 16.85456753 | E81: 0.637196653 | F81: 22.59960643 | G81: 0.4371287859 | H81: 25.74577892 | I81: 47 | J81: 0.8342326368 | K81: 17.44598769 | L81: -8.925137091e-05 | M81: -3.493815809e-05 | N81: -0.0004934740552 | O81: -0.0001898991009 | P81: -8.925137091e-05 | Q81: -3.493815809e-05 | R81: -0.0007734805133 | S81: 0.0007927099568 | U81: 37.87371391 | V81: 37 | W81: 19.51657515 | X81: 19.06634459 | Y81: 19.06634459 | Z81: 32.70784263 | AA81: 16.85456753
A82: 76 | B82: 76 | C82: 0.9441061931 | D82: 16.82410289 | E82: 0.6409624467 | F82: 22.54774329 | G82: 0.4437116611 | H82: 25.62838619 | I82: 48 | J82: 0.8467149189 | K82: 17.32806708 | L82: -8.980249883e-05 | M82: -3.519523751e-05 | N82: -0.0004947478744 | O82: -0.0001896668945 | P82: -8.980249883e-05 | Q82: -3.519523751e-05 | R82: -0.0007752613606 | S82: 0.0007945663127 | U82: 37.88287996 | V82: 37 | W82: 19.48601372 | X82: 19.03188217 | Y82: 19.03188217 | Z82: 32.70784263 | AA82: 16.82410289
A83: 77 | B83: 77 | C83: 0.9475804698 | D83: 16.79409048 | E83: 0.6446669163 | F83: 22.49695646 | G83: 0.4500558701 | H83: 25.51625821 | I83: 49 | J83: 0.8587396871 | K83: 17.2159664 | L83: -9.033338453e-05 | M83: -3.544282119e-05 | N83: -0.0004959963413 | O83: -0.0001894579747 | P83: -9.033338453e-05 | Q83: -3.544282119e-05 | R83: -0.0007770111281 | S83: 0.0007963861168 | U83: 37.89186902 | V83: 37 | W83: 19.45586825 | X83: 18.99793132 | Y83: 18.99793132 | Z83: 32.70784263 | AA83: 16.79409048
A84: 78 | B84: 78 | C84: 0.9510159528 | D84: 16.76451829 | E84: 0.6483121547 | F84: 22.44720449 | G84: 0.4561802985 | H84: 25.40894149 | I84: 50 | J84: 0.8703431131 | K84: 17.10916023 | L84: -9.08456323e-05 | M84: -3.56816621e-05 | N84: -0.000497220732 | O84: -0.0001892702927 | P84: -9.08456323e-05 | Q84: -3.56816621e-05 | R84: -0.0007787312218 | S84: 0.0007981712742 | U84: 37.90068672 | V84: 37 | W84: 19.42612856 | X84: 18.96447845 | Y84: 18.96447845 | Z84: 32.70784263 | AA84: 16.76451829
A85: 79 | B85: 79 | C85: 0.954413512 | D85: 16.73537479 | E85: 0.6519001436 | F85: 22.39844832 | G85: 0.4621015546 | H85: 25.30603971 | I85: 51 | J85: 0.8815570098 | K85: 17.0071913 | L85: -9.134065282e-05 | M85: -3.591242235e-05 | N85: -0.0004984222045 | O85: -0.0001891020446 | P85: -9.134065282e-05 | Q85: -3.591242235e-05 | R85: -0.0007804229253 | S85: 0.0007999235064 | U85: 37.90933846 | V85: 37 | W85: 19.39678488 | X85: 18.93151054 | Y85: 18.93151054 | Z85: 32.70784263 | AA85: 16.73537479
A86: 80 | B86: 80 | C86: 0.9577739869 | D86: 16.7066489 | E86: 0.655432761 | F86: 22.35065106 | G86: 0.4678343304 | H86: 25.20720441 | I86: 52 | J86: 0.8924095216 | K86: 16.90965916 | L86: -9.181969385e-05 | M86: -3.613568756e-05 | N86: -0.0004996018151 | O86: -0.0001889516325 | P86: -9.181969385e-05 | Q86: -3.613568756e-05 | R86: -0.000782087416 | S86: 0.0008016443776 | U86: 37.91782939 | V86: 37 | W86: 19.36782777 | X86: 18.89901503 | Y86: 18.89901503 | Z86: 32.70784263 | AA86: 16.7066489
A87: 81 | B87: 81 | C87: 0.9610981877 | D87: 16.67832994 | E87: 0.6589117888 | F87: 22.30377784 | G87: 0.4733916924 | H87: 25.11212748 | I87: 53 | J87: 0.9029256814 | K87: 16.81621112 | L87: -9.228386506e-05 | M87: -3.635197852e-05 | N87: -0.0005007605314 | O87: -0.0001888176344 | P87: -9.228386506e-05 | Q87: -3.635197852e-05 | R87: -0.0007837257785 | S87: 0.0008033353153 | U87: 37.92616444 | V87: 37 | W87: 19.33924812 | X87: 18.86697985 | Y87: 18.86697985 | Z87: 32.70784263 | AA87: 16.67832994
A88: 82 | B88: 82 | C88: 0.9643868973 | D88: 16.65040765 | E88: 0.6623389193 | F88: 22.25779567 | G88: 0.4787853189 | H88: 25.02053511 | I88: 54 | J88: 0.9131278647 | K88: 16.7265349 | L88: -9.273415808e-05 | M88: -3.65617606e-05 | N88: -0.0005018992439 | O88: -0.0001886987789 | P88: -9.273415808e-05 | Q88: -3.65617606e-05 | R88: -0.0007853390163 | S88: 0.0008049976285 | U88: 37.93434833 | V88: 37 | W88: 19.31103714 | X88: 18.8353934 | Y88: 18.8353934 | Z88: 32.70784263 | AA88: 16.65040765
A89: 83 | B89: 83 | C89: 0.967640872 | D89: 16.62287214 | E89: 0.6657157612 | F89: 22.21267329 | G89: 0.484025695 | H89: 24.93218286 | I89: 55 | J89: 0.9230361618 | K89: 16.64035271 | L89: -9.317146319e-05 | M89: -3.67654516e-05 | N89: -0.0005030187751 | O89: -0.0001885939249 | P89: -9.317146319e-05 | Q89: -3.67654516e-05 | R89: -0.0007869280608 | S89: 0.0008066325218 | U89: 37.94238559 | V89: 37 | W89: 19.28318634 | X89: 18.80424448 | Y89: 18.80424448 | Z89: 32.70784263 | AA89: 16.62287214
A90: 84 | B90: 84 | C90: 0.9708608429 | D90: 16.59571387 | E90: 0.6690438453 | F90: 22.16838108 | G90: 0.4891222735 | H90: 24.8468515 | I90: 56 | J90: 0.9326686873 | K90: 16.55741629 | L90: -9.359658292e-05 | M90: -3.696342814e-05 | N90: -0.000504119887 | O90: -0.0001885020436 | P90: -9.359658292e-05 | Q90: -3.696342814e-05 | R90: -0.0007884937796 | S90: 0.0008082411081 | U90: 37.95028055 | V90: 37 | W90: 19.25568753 | X90: 18.77352231 | Y90: 18.77352231 | Z90: 32.70784263 | AA90: 16.59571387
A91: 85 | B91: 85 | C91: 0.9740475171 | D91: 16.56892367 | E91: 0.6723246298 | F91: 22.12489091 | G91: 0.4940836096 | H91: 24.76434368 | I91: 57 | J91: 0.9420418369 | K91: 16.4775029 | L91: -9.401024358e-05 | M91: -3.715603107e-05 | N91: -0.0005052032879 | O91: -0.0001884222049 | P91: -9.401024358e-05 | Q91: -3.715603107e-05 | R91: -0.0007900369832 | S91: 0.0008098244186 | U91: 37.95803738 | V91: 37 | W91: 19.22853277 | X91: 18.7432165 | Y91: 18.7432165 | Z91: 32.70784263 | AA91: 16.56892367
A92: 86 | B92: 86 | C92: 0.9772015789 | D92: 16.54249267 | E92: 0.6755595044 | F92: 22.08217607 | G92: 0.4989174741 | H92: 24.68448106 | I92: 58 | J92: 0.9511705045 | K92: 16.40041192 | L92: -9.441310483e-05 | M92: -3.734356992e-05 | N92: -0.0005062696382 | O92: -0.0001883535649 | P92: -9.441310483e-05 | Q92: -3.734356992e-05 | R92: -0.0007915584305 | S92: 0.000811383412 | U92: 37.96566006 | V92: 37 | W92: 19.20171442 | X92: 18.71331704 | Y92: 18.71331704 | Z92: 32.70784263 | AA92: 16.54249267
A93: 87 | B93: 87 | C93: 0.9803236904 | D93: 16.51641234 | E93: 0.6787497953 | F93: 22.04021118 | G93: 0.5036309491 | H93: 24.60710191 | I93: 59 | J93: 0.9600682645 | K93: 16.325962 | L93: -9.480576779e-05 | M93: -3.752632678e-05 | N93: -0.0005073195551 | O93: -0.0001882953556 | P93: -9.480576779e-05 | Q93: -3.752632678e-05 | R93: -0.0007930588342 | S93: 0.0008129189817 | U93: 37.97315243 | V93: 37 | W93: 19.17522505 | X93: 18.68381426 | Y93: 18.68381426 | Z93: 32.70784263 | AA93: 16.51641234
A94: 88 | B94: 88 | C94: 0.9834144929 | D94: 16.49067441 | E94: 0.6818967686 | F94: 21.99897205 | G94: 0.5082305086 | H94: 24.53205912 | I94: 60 | J94: 0.9687475274 | K94: 16.25398867 | L94: -9.518878198e-05 | M94: -3.770455951e-05 | N94: -0.0005083536165 | O94: -0.0001882468762 | P94: -9.518878198e-05 | Q94: -3.770455951e-05 | R94: -0.000794538865 | S94: 0.0008144319629 | U94: 37.98051816 | V94: 37 | W94: 19.14905749 | X94: 18.65469882 | Y94: 18.65469882 | Z94: 32.70784263 | AA94: 16.49067441
A95: 89 | B95: 89 | C95: 0.9864746075 | D95: 16.46527094 | E95: 0.6850016343 | F95: 21.95843568 | G95: 0.5127220884 | H95: 24.45921844 | I95: 61 | J95: 0.9772196727 | K95: 16.18434231 | L95: -9.556265119e-05 | M95: -3.78785045e-05 | N95: -0.0005093723653 | O95: -0.0001882074855 | P95: -9.556265119e-05 | Q95: -3.78785045e-05 | R95: -0.0007959991553 | S95: 0.0008159231375 | U95: 37.98776079 | V95: 37 | W95: 19.12320482 | X95: 18.62596172 | Y95: 18.62596172 | Z95: 32.70784263 | AA95: 16.46527094
A96: 90 | B96: 90 | C96: 0.9895046363 | D96: 16.44019422 | E96: 0.6880655494 | F96: 21.91858012 | G96: 0.5171111456 | H96: 24.38845704 | I96: 62 | J96: 0.9854951633 | K96: 16.1168864 | L96: -9.592783855e-05 | M96: -3.804837907e-05 | N96: -0.0005103763122 | O96: -0.0001881765957 | P96: -9.592783855e-05 | Q96: -3.804837907e-05 | R96: -0.0007974403025 | S96: 0.00081739324 | U96: 37.99488372 | V96: 37 | W96: 19.0976603 | X96: 18.59759426 | Y96: 18.59759426 | Z96: 32.70784263 | AA96: 16.44019422
A97: 91 | B97: 91 | C97: 0.9925051626 | D97: 16.41543683 | E97: 0.6910896215 | F97: 21.87938447 | G97: 0.5214027103 | H97: 24.31966221 | I97: 63 | J97: 0.9935836437 | K97: 16.05149606 | L97: -9.628477092e-05 | M97: -3.821438351e-05 | N97: -0.0005113659384 | O97: -0.0001881536663 | P97: -9.628477092e-05 | Q97: -3.821438351e-05 | R97: -0.0007988628722 | S97: 0.0008188429609 | U97: 38.00189021 | V97: 37 | W97: 19.07241744 | X97: 18.56958802 | Y97: 18.56958802 | Z97: 32.70784263 | AA97: 16.41543683
A98: 92 | B98: 92 | C98: 0.9954767523 | D98: 16.39099157 | E98: 0.694074911 | F98: 21.84082874 | G98: 0.5256014297 | H98: 24.25273029 | I98: 64 | J98: 1.001494025 | K98: 15.98805672 | L98: -9.663384266e-05 | M98: -3.837670286e-05 | N98: -0.0005123416984 | O98: -0.0001881381994 | P98: -9.663384266e-05 | Q98: -3.837670286e-05 | R98: -0.0008002674004 | S98: 0.0008202729514 | U98: 38.00878342 | V98: 37 | W98: 19.04746992 | X98: 18.54193488 | Y98: 18.54193488 | Z98: 32.70784263 | AA98: 16.39099157
A99: 93 | B99: 93 | C99: 0.9984199545 | D99: 16.3668515 | E99: 0.6970224344 | F99: 21.80289385 | G99: 0.5297116077 | H99: 24.18756569 | I99: 65 | J99: 1.009234562 | K99: 15.92646304 | L99: -9.697541898e-05 | M99: -3.853550847e-05 | N99: -0.000513304022 | O99: -0.0001881297358 | P99: -9.697541898e-05 | Q99: -3.853550847e-05 | R99: -0.0008016543962 | S99: 0.0008216838259 | U99: 38.01556636 | V99: 37 | W99: 19.02281164 | X99: 18.51462698 | Y99: 18.51462698 | Z99: 32.70784263 | AA99: 16.3668515
A100: 94 | B100: 94 | C100: 1.001335302 | D100: 16.34300989 | E100: 0.6999331665 | F100: 21.76556157 | G100: 0.5337372381 | H100: 24.12408011 | I100: 66 | J100: 1.016812914 | K100: 15.86661796 | L100: -9.730983875e-05 | M100: -3.869095934e-05 | N100: -0.0005142533163 | O100: -0.0001881278506 | P100: -9.730983875e-05 | Q100: -3.869095934e-05 | R100: -0.0008030243436 | S100: 0.0008230761657 | U100: 38.02224196 | V100: 37 | W100: 18.99843666 | X100: 18.4876567 | Y100: 18.4876567 | Z100: 32.70784263 | AA100: 16.34300989
A101: 95 | B101: 95 | C101: 1.004223311 | D101: 16.31946023 | E101: 0.7028080427 | F101: 21.72881445 | G101: 0.5376820352 | H101: 24.06219176 | I101: 67 | J101: 1.024236204 | K101: 15.80843181 | L101: -9.763741712e-05 | M101: -3.884320335e-05 | N101: -0.0005151899675 | O101: -0.0001881321503 | P101: -9.763741712e-05 | Q101: -3.884320335e-05 | R101: -0.0008043777033 | S101: 0.0008244505214 | U101: 38.02881302 | V101: 37 | W101: 18.97433924 | X101: 18.46101669 | Y101: 18.46101669 | Z101: 32.70784263 | AA101: 16.31946023
A102: 96 | B102: 96 | C102: 1.007084485 | D102: 16.29619623 | E102: 0.7056479613 | F102: 21.69263578 | G102: 0.5415494594 | H102: 24.00182477 | I102: 68 | J102: 1.03151107 | K102: 15.75182162 | L102: -9.795844767e-05 | M102: -3.899237823e-05 | N102: -0.0005161143424 | O102: -0.0001881422699 | P102: -9.795844767e-05 | Q102: -3.899237823e-05 | R102: -0.0008057149147 | S102: 0.0008258074152 | U102: 38.03528225 | V102: 37 | W102: 18.95051381 | X102: 18.43469982 | Y102: 18.43469982 | Z102: 32.70784263 | AA102: 16.29619623
A103: 97 | B103: 97 | C103: 1.009919311 | D103: 16.27321179 | E103: 0.7084537854 | F103: 21.65700958 | G103: 0.5453427408 | H103: 23.9429086 | I103: 69 | J103: 1.03864371 | K103: 15.69671044 | L103: -9.827320446e-05 | M103: -3.913861257e-05 | N103: -0.0005170267901 | O103: -0.0001881578702 | P103: -9.827320446e-05 | Q103: -3.913861257e-05 | R103: -0.000807036397 | S103: 0.0008271473431 | U103: 38.04165225 | V103: 37 | W103: 18.92695495 | X103: 18.40869919 | Y103: 18.40869919 | Z103: 32.70784263 | AA103: 16.27321179
A104: 98 | B104: 98 | C104: 1.012728263 | D104: 16.25050099 | E104: 0.7112263448 | F104: 21.62192051 | G104: 0.5490648998 | H104: 23.88537756 | I104: 70 | J104: 1.045639917 | K104: 15.64302677 | L104: -9.85819437e-05 | M104: -3.928202658e-05 | N104: -0.0005179276426 | O104: -0.0001881786355 | P104: -9.85819437e-05 | Q104: -3.928202658e-05 | R104: -0.000808342551 | S104: 0.0008284707771 | U104: 38.04792554 | V104: 37 | W104: 18.90365741 | X104: 18.38300812 | Y104: 18.38300812 | Z104: 32.70784263 | AA104: 16.25050099
A105: 99 | B105: 99 | C105: 1.015511802 | D105: 16.2280581 | E105: 0.7139664375 | F105: 21.58735387 | G105: 0.552718765 | H105: 23.82917038 | I105: 71 | J105: 1.05250512 | K105: 15.59070411 | L105: -9.888490537e-05 | M105: -3.942273285e-05 | N105: -0.0005188172169 | O105: -0.0001882042717 | P105: -9.888490537e-05 | Q105: -3.942273285e-05 | R105: -0.0008096337598 | S105: 0.0008297781663 | U105: 38.05410456 | V105: 37 | W105: 18.88061609 | X105: 18.35762011 | Y105: 18.35762011 | Z105: 32.70784263 | AA105: 16.2280581
A106: 100 | B106: 100 | C106: 1.018270376 | D106: 16.20587758 | E106: 0.716674832 | F106: 21.55329554 | G106: 0.55630699 | H106: 23.77422979 | I106: 72 | J106: 1.059244408 | K106: 15.53968042 | L106: -9.918231456e-05 | M106: -3.956083698e-05 | N106: -0.000519695815 | O106: -0.0001882345042 | P106: -9.918231456e-05 | Q106: -3.956083698e-05 | R106: -0.0008109103902 | S106: 0.0008310699393 | U106: 38.06019163 | V106: 37 | W106: 18.85782603 | X106: 18.3325289 | Y106: 18.3325289 | Z106: 32.70784263 | AA106: 16.20587758
A107: 101 | B107: 101 | C107: 1.02100442 | D107: 16.18395403 | E107: 0.7193522679 | F107: 21.51973199 | G107: 0.5598320677 | H107: 23.7205022 | I107: 73 | J107: 1.065862566 | K107: 15.48989779 | L107: -9.947438273e-05 | M107: -3.969643818e-05 | N107: -0.0005205637259 | O107: -0.0001882690766 | P107: -9.947438273e-05 | Q107: -3.969643818e-05 | R107: -0.0008121727941 | S107: 0.0008323465049 | U107: 38.06618904 | V107: 37 | W107: 18.83528243 | X107: 18.30772839 | Y107: 18.30772839 | Z107: 32.70784263 | AA107: 16.18395403
A108: 102 | B108: 102 | C108: 1.023714358 | D108: 16.16228224 | E108: 0.7219994582 | F108: 21.4866502 | G108: 0.5632963434 | H108: 23.6679374 | I108: 74 | J108: 1.072364096 | K108: 15.44130207 | L108: -9.976130881e-05 | M108: -3.982962979e-05 | N108: -0.0005214212256 | O108: -0.0001883077489 | P108: -9.976130881e-05 | Q108: -3.982962979e-05 | R108: -0.0008134213086 | S108: 0.0008336082538 | U108: 38.07209895 | V108: 37 | W108: 18.81298059 | X108: 18.28321267 | Y108: 18.28321267 | Z108: 32.70784263 | AA108: 16.16228224
A109: 103 | B109: 103 | C109: 1.026400603 | D109: 16.14085713 | E109: 0.7246170901 | F109: 21.45403766 | G109: 0.5667020265 | H109: 23.61648825 | I109: 75 | J109: 1.078753236 | K109: 15.39384254 | L109: -0.0001000432802 | M109: -3.996049973e-05 | N109: -0.0005222685785 | O109: -0.0001883502964 | P109: -0.0001000432802 | Q109: -3.996049973e-05 | R109: -0.0008146562575 | S109: 0.0008348555596 | U109: 38.07792348 | V109: 37 | W109: 18.79091598 | X109: 18.25897601 | Y109: 18.25897601 | Z109: 32.70784263 | AA109: 16.14085713
A110: 104 | B110: 104 | C110: 1.029063556 | D110: 16.11967379 | E110: 0.7272058264 | F110: 21.42188235 | G110: 0.5700512012 | H110: 23.56611044 | I110: 76 | J110: 1.085033988 | K110: 15.34747164 | L110: -0.0001003204737 | M110: -4.008913093e-05 | N110: -0.0005231060377 | O110: -0.0001883965085 | P110: -0.0001003204737 | Q110: -4.008913093e-05 | R110: -0.0008158779521 | S110: 0.00083608878 | U110: 38.08366467 | V110: 37 | W110: 18.76908417 | X110: 18.23501284 | Y110: 18.23501284 | Z110: 32.70784263 | AA110: 16.11967379
A111: 105 | B111: 105 | C111: 1.031703608 | D111: 16.09872744 | E111: 0.7297663066 | F111: 21.39017268 | G111: 0.5733458362 | H111: 23.51676227 | I111: 77 | J111: 1.091210131 | K111: 15.30214469 | L111: -0.0001005930563 | M111: -4.021560173e-05 | N111: -0.0005239338462 | O111: -0.0001884461875 | P111: -0.0001005930563 | Q111: -4.021560173e-05 | R111: -0.0008170866915 | S111: 0.0008373082577 | U111: 38.08932449 | V111: 37 | W111: 18.74748085 | X111: 18.21131776 | Y111: 18.21131776 | Z111: 32.70784263 | AA111: 16.09872744
A112: 106 | B112: 106 | C112: 1.03432114 | D112: 16.07801344 | E112: 0.7322991482 | F112: 21.35889753 | G112: 0.576587793 | H112: 23.46840446 | I112: 78 | J112: 1.097285237 | K112: 15.25781969 | L112: -0.0001008611858 | M112: -4.033998619e-05 | N112: -0.0005247522367 | O112: -0.0001884991476 | P112: -0.0001008611858 | Q112: -4.033998619e-05 | R112: -0.0008182827635 | S112: 0.0008385143216 | U112: 38.09490486 | V112: 37 | W112: 18.72610185 | X112: 18.18788552 | Y112: 18.18788552 | Z112: 32.70784263 | AA112: 16.07801344
A113: 107 | B113: 107 | C113: 1.036916521 | D113: 16.05752729 | E113: 0.7348049476 | F113: 21.32804616 | G113: 0.5797788339 | H113: 23.42099996 | I113: 79 | J113: 1.103262691 | K113: 15.21445711 | L113: -0.0001011250118 | M113: -4.046235443e-05 | N113: -0.0005255614331 | O113: -0.0001885552142 | P113: -0.0001011250118 | Q113: -4.046235443e-05 | R113: -0.0008194664454 | S113: 0.000839707287 | U113: 38.10040762 | V113: 37 | W113: 18.70494309 | X113: 18.16471103 | Y113: 18.16471103 | Z113: 32.70784263 | AA113: 16.05752729
A114: 108 | B114: 108 | C114: 1.039490115 | D114: 16.0372646 | E114: 0.737284281 | F114: 21.29760823 | G114: 0.5829206292 | H114: 23.37451374 | I114: 80 | J114: 1.109145698 | K114: 15.17201966 | L114: -0.0001013846758 | M114: -4.058277291e-05 | N114: -0.0005263616504 | O114: -0.0001886142229 | P114: -0.0001013846758 | Q114: -4.058277291e-05 | R114: -0.0008206380044 | S114: 0.000840887457 | U114: 38.10583454 | V114: 37 | W114: 18.6840006 | X114: 18.14178933 | Y114: 18.14178933 | Z114: 32.70784263 | AA114: 16.0372646
A115: 109 | B115: 109 | C115: 1.042042273 | D115: 16.01722113 | E115: 0.7397377056 | F115: 21.26757377 | G115: 0.5860147636 | H115: 23.32891272 | I115: 81 | J115: 1.114937302 | K115: 15.13047217 | L115: -0.0001016403122 | M115: -4.070130466e-05 | N115: -0.0005271530952 | O115: -0.0001886760189 | P115: -0.0001016403122 | Q115: -4.070130466e-05 | R115: -0.0008217976979 | S115: 0.000842055123 | U115: 38.11118737 | V115: 37 | W115: 18.66327053 | X115: 18.1191156 | Y115: 18.1191156 | Z115: 32.70784263 | AA115: 16.01722113
A116: 110 | B116: 110 | C116: 1.044573337 | D116: 15.99739272 | E116: 0.7421657601 | F116: 21.23793318 | G116: 0.5890627422 | H116: 23.28416558 | I116: 82 | J116: 1.120640393 | K116: 15.08978142 | L116: -0.0001018920487 | M116: -4.081800957e-05 | N116: -0.0005279359666 | O116: -0.0001887404561 | P116: -0.0001018920487 | Q116: -4.081800957e-05 | R116: -0.0008229457746 | S116: 0.0008432105651 | U116: 38.11646778 | V116: 37 | W116: 18.64274912 | X116: 18.09668517 | Y116: 18.09668517 | Z116: 32.70784263 | AA116: 15.99739272
A117: 111 | B117: 111 | C117: 1.047083644 | D117: 15.97777537 | E117: 0.7445689659 | F117: 21.20867717 | G117: 0.5920659958 | H117: 23.24024261 | I117: 83 | J117: 1.126257717 | K117: 15.04991598 | L117: -0.0001021400066 | M117: -4.093294456e-05 | N117: -0.0005287104562 | O117: -0.0001888073968 | P117: -0.0001021400066 | Q117: -4.093294456e-05 | R117: -0.0008240824743 | S117: 0.0008443540531 | U117: 38.12167738 | V117: 37 | W117: 18.62243269 | X117: 18.07449349 | Y117: 18.07449349 | Z117: 32.70784263 | AA117: 15.97777537
A118: 112 | B118: 112 | C118: 1.04957352 | D118: 15.95836515 | E118: 0.7469478276 | F118: 21.1797968 | G118: 0.5950258859 | H118: 23.19711569 | I118: 84 | J118: 1.131791891 | K118: 15.0108461 | L118: -0.0001023843014 | M118: -4.104616377e-05 | N118: -0.0005294767486 | O118: -0.000188876711 | P118: -0.0001023843014 | Q118: -4.104616377e-05 | R118: -0.0008252080288 | S118: 0.000845485847 | U118: 38.12681776 | V118: 37 | W118: 18.6023177 | X118: 18.05253612 | Y118: 18.05253612 | Z118: 32.70784263 | AA118: 15.95836515
A119: 113 | B119: 113 | C119: 1.052043282 | D119: 15.93915826 | E119: 0.7493028336 | F119: 21.15128341 | G119: 0.5979437091 | H119: 23.15475807 | I119: 85 | J119: 1.137245404 | K119: 14.97254361 | L119: -0.000102625043 | M119: -4.115771881e-05 | N119: -0.0005302350217 | O119: -0.0001889482757 | P119: -0.000102625043 | Q119: -4.115771881e-05 | R119: -0.000826322662 | S119: 0.0008466061972 | U119: 38.13189042 | V119: 37 | W119: 18.58240065 | X119: 18.03080876 | Y119: 18.03080876 | Z119: 32.70784263 | AA119: 15.93915826
A120: 114 | B120: 114 | C120: 1.054493243 | D120: 15.92015098 | E120: 0.7516344574 | F120: 21.12312866 | G120: 0.6008207016 | H120: 23.11314438 | I120: 86 | J120: 1.14262063 | K120: 14.93498175 | L120: -0.0001028623362 | M120: -4.126765882e-05 | N120: -0.0005309854475 | O120: -0.0001890219746 | P120: -0.0001028623362 | Q120: -4.126765882e-05 | R120: -0.0008274265905 | S120: 0.0008477153453 | U120: 38.13689686 | V120: 37 | W120: 18.56267816 | X120: 18.00930722 | Y120: 18.00930722 | Z120: 32.70784263 | AA120: 15.92015098
A121: 115 | B121: 115 | C121: 1.056923705 | D121: 15.90133972 | E121: 0.7539431574 | F121: 21.09532447 | G121: 0.6036580428 | H121: 23.07225045 | I121: 87 | J121: 1.147919834 | K121: 14.89813516 | L121: -0.000103096281 | M121: -4.137603073e-05 | N121: -0.0005317281914 | O121: -0.0001890976979 | P121: -0.000103096281 | Q121: -4.137603073e-05 | R121: -0.0008285200239 | S121: 0.0008488135245 | U121: 38.14183849 | V121: 37 | W121: 18.54314693 | X121: 17.98802741 | Y121: 17.98802741 | Z121: 32.70784263 | AA121: 15.90133972
A122: 116 | B122: 116 | C122: 1.059334965 | D122: 15.88272096 | E122: 0.7562293784 | F122: 21.06786303 | G122: 0.6064568588 | H122: 23.0320533 | I122: 88 | J122: 1.153145181 | K122: 14.86197972 | L122: -0.000103326973 | M122: -4.148287932e-05 | N122: -0.0005324634138 | O122: -0.0001891753413 | P122: -0.000103326973 | Q122: -4.148287932e-05 | R122: -0.000829603165 | S122: 0.0008499009599 | U122: 38.14671672 | V122: 37 | W122: 18.52380373 | X122: 17.96696537 | Y122: 17.96696537 | Z122: 32.70784263 | AA122: 15.88272096
A123: 117 | B123: 117 | C123: 1.061727312 | D123: 15.86429128 | E123: 0.7584935515 | F123: 21.04073681 | G123: 0.6092182256 | H123: 22.99253104 | I123: 89 | J123: 1.158298736 | K123: 14.82649249 | L123: -0.0001035545032 | M123: -4.15882474e-05 | N123: -0.0005331912693 | O123: -0.0001892548062 | P123: -0.0001035545032 | Q123: -4.15882474e-05 | R123: -0.0008306762102 | S123: 0.0008509778691 | U123: 38.15153288 | V123: 37 | W123: 18.50464543 | X123: 17.94611721 | Y123: 17.94611721 | Z123: 32.70784263 | AA123: 15.86429128
A124: 118 | B124: 118 | C124: 1.064101028 | D124: 15.84604735 | E124: 0.760736095 | F124: 21.01393849 | G124: 0.6119431723 | H124: 22.95366278 | I124: 90 | J124: 1.163382478 | K124: 14.79165165 | L124: -0.0001037789591 | M124: -4.169217588e-05 | N124: -0.0005339119073 | O124: -0.0001893359989 | P124: -0.0001037789591 | Q124: -4.169217588e-05 | R124: -0.0008317393498 | S124: 0.0008520444623 | U124: 38.15628828 | V124: 37 | W124: 18.48566895 | X124: 17.92547918 | Y124: 17.92547918 | Z124: 32.70784263 | AA124: 15.84604735
A125: 119 | B125: 119 | C125: 1.06645639 | D125: 15.82798591 | E125: 0.7629574146 | F125: 20.98746101 | G125: 0.6146326838 | H125: 22.91542861 | I125: 91 | J125: 1.168398297 | K125: 14.75743642 | L125: -0.000104000424 | M125: -4.179470394e-05 | N125: -0.0005346254726 | O125: -0.0001894188309 | P125: -0.000104000424 | Q125: -4.179470394e-05 | R125: -0.0008327927683 | S125: 0.0008531009429 | U125: 38.1609842 | V125: 37 | W125: 18.4668713 | X125: 17.90504759 | Y125: 17.90504759 | Z125: 32.70784263 | AA125: 15.82798591
A126: 120 | B126: 120 | C126: 1.068793667 | D126: 15.81010381 | E126: 0.7651579045 | F126: 20.96129752 | G126: 0.6172877034 | H126: 22.87780951 | I126: 92 | J126: 1.173348008 | K126: 14.72382697 | L126: -0.000104218978 | M126: -4.18958691e-05 | N126: -0.0005353321051 | O126: -0.0001895032177 | P126: -0.000104218978 | Q126: -4.18958691e-05 | R126: -0.0008338366445 | S126: 0.0008541475078 | U126: 38.16562186 | V126: 37 | W126: 18.44824957 | X126: 17.88481887 | Y126: 17.88481887 | Z126: 32.70784263 | AA126: 15.81010381
A127: 121 | B127: 121 | C127: 1.071113122 | D127: 15.79239796 | E127: 0.7673379473 | F127: 20.93544138 | G127: 0.6199091351 | H127: 22.8407873 | I127: 93 | J127: 1.178233345 | K127: 14.69080439 | L127: -0.0001044346977 | M127: -4.199570729e-05 | N127: -0.0005360319404 | O127: -0.0001895890795 | P127: -0.0001044346977 | Q127: -4.199570729e-05 | R127: -0.000834871152 | S127: 0.0008551843473 | U127: 38.17020247 | V127: 37 | W127: 18.4298009 | X127: 17.86478953 | Y127: 17.86478953 | Z127: 32.70784263 | AA127: 15.79239796
A128: 122 | B128: 122 | C128: 1.073415013 | D128: 15.77486534 | E128: 0.7694979146 | F128: 20.90988619 | G128: 0.6224978458 | H128: 22.80434461 | I128: 94 | J128: 1.183055977 | K128: 14.65835065 | L128: -0.0001046476565 | M128: -4.2094253e-05 | N128: -0.0005367251096 | O128: -0.0001896763402 | P128: -0.0001046476565 | Q128: -4.2094253e-05 | R128: -0.0008358964592 | S128: 0.0008562116462 | U128: 38.17472718 | V128: 37 | W128: 18.41152251 | X128: 17.84495616 | Y128: 17.84495616 | Z128: 32.70784263 | AA128: 15.77486534
A129: 123 | B129: 123 | C129: 1.075699591 | D129: 15.75750304 | E129: 0.7716381676 | F129: 20.8846257 | G129: 0.6250546674 | H129: 22.7684648 | I129: 95 | J129: 1.1878175 | K129: 14.6264485 | L129: -0.0001048579251 | M129: -4.219153931e-05 | N129: -0.0005374117401 | O129: -0.0001897649276 | P129: -0.0001048579251 | Q129: -4.219153931e-05 | R129: -0.0008369127297 | S129: 0.0008572295831 | U129: 38.17919712 | V129: 37 | W129: 18.39341169 | X129: 17.82531545 | Y129: 17.82531545 | Z129: 32.70784263 | AA129: 15.75750304
A130: 124 | B130: 124 | C130: 1.077967104 | D130: 15.74030819 | E130: 0.7737590572 | F130: 20.85965388 | G130: 0.6275803989 | H130: 22.73313197 | I130: 96 | J130: 1.192519452 | K130: 14.59508146 | L130: -0.0001050655711 | M130: -4.228759798e-05 | N130: -0.000538091955 | O130: -0.0001898547729 | P130: -0.0001050655711 | Q130: -4.228759798e-05 | R130: -0.0008379201221 | S130: 0.0008582383314 | U130: 38.18361339 | V130: 37 | W130: 18.37546577 | X130: 17.80586417 | Y130: 17.80586417 | Z130: 32.70784263 | AA130: 15.74030819
A131: 125 | B131: 125 | C131: 1.080217792 | D131: 15.72327799 | E131: 0.7758609249 | F131: 20.83496488 | G131: 0.6300758078 | H131: 22.69833085 | I131: 97 | J131: 1.197163306 | K131: 14.56423376 | L131: -0.0001052706595 | M131: -4.238245954e-05 | N131: -0.0005387658739 | O131: -0.0001899458107 | P131: -0.0001052706595 | Q131: -4.238245954e-05 | R131: -0.0008389187909 | S131: 0.0008592380593 | U131: 38.18797707 | V131: 37 | W131: 18.35768217 | X131: 17.78659915 | Y131: 17.78659915 | Z131: 32.70784263 | AA131: 15.72327799
A132: 126 | B132: 126 | C132: 1.082451889 | D132: 15.70640973 | E132: 0.7779441024 | F132: 20.81055301 | G132: 0.6325416321 | H132: 22.66404683 | I132: 98 | J132: 1.201750481 | K132: 14.53389032 | L132: -0.0001054732531 | M132: -4.247615333e-05 | N132: -0.0005394336129 | O132: -0.0001900379788 | P132: -0.0001054732531 | Q132: -4.247615333e-05 | R132: -0.000839908886 | S132: 0.0008602289297 | U132: 38.19228918 | V132: 37 | W132: 18.34005836 | X132: 17.76751731 | Y132: 17.76751731 | Z132: 32.70784263 | AA132: 15.70640973
A133: 127 | B133: 127 | C133: 1.084669628 | D133: 15.68970075 | E133: 0.7800089128 | F133: 20.78641277 | G133: 0.6349785817 | H133: 22.63026587 | I133: 99 | J133: 1.206282341 | K133: 14.50403668 | L133: -0.0001056734118 | M133: -4.256870757e-05 | N133: -0.0005400952844 | O133: -0.0001901312179 | P133: -0.0001056734118 | Q133: -4.256870757e-05 | R133: -0.0008408905533 | S133: 0.0008612111012 | U133: 38.19655074 | V133: 37 | W133: 18.32259185 | X133: 17.74861566 | Y133: 17.74861566 | Z133: 32.70784263 | AA133: 15.68970075
A134: 128 | B134: 128 | C134: 1.086871233 | D134: 15.67314845 | E134: 0.7820556703 | F134: 20.7625388 | G134: 0.6373873398 | H134: 22.59697452 | I134: 100 | J134: 1.210760201 | K134: 14.47465898 | L134: -0.0001058711937 | M134: -4.266014943e-05 | N134: -0.0005407509979 | O134: -0.0001902254715 | P134: -0.0001058711937 | Q134: -4.266014943e-05 | R134: -0.0008418639345 | S134: 0.0008621847272 | U134: 38.20076273 | V134: 37 | W134: 18.30528024 | X134: 17.72989125 | Y134: 17.72989125 | Z134: 32.70784263 | AA134: 15.67314845
A135: 129 | B135: 129 | C135: 1.089056924 | D135: 15.6567503 | E135: 0.7840846807 | F135: 20.7389259 | G135: 0.6397685645 | H135: 22.56415985 | I135: 101 | J135: 1.215185324 | K135: 14.44574395 | L135: -0.0001060666545 | M135: -4.275050507e-05 | N135: -0.0005414008594 | O135: -0.0001903206857 | P135: -0.0001060666545 | Q135: -4.275050507e-05 | R135: -0.0008428291676 | S135: 0.0008631499573 | U135: 38.20492611 | V135: 37 | W135: 18.28812114 | X135: 17.71134121 | Y135: 17.71134121 | Z135: 32.70784263 | AA135: 15.6567503
A136: 130 | B136: 130 | C136: 1.091226919 | D136: 15.64050383 | E136: 0.7860962418 | F136: 20.71556903 | G136: 0.6421228896 | H136: 22.53180942 | I136: 102 | J136: 1.219558931 | K136: 14.41727884 | L136: -0.0001062598479 | M136: -4.283979968e-05 | N136: -0.0005420449721 | O136: -0.0001904168092 | P136: -0.0001062598479 | Q136: -4.283979968e-05 | R136: -0.0008437863871 | S136: 0.0008641069364 | U136: 38.20904179 | V136: 37 | W136: 18.27111226 | X136: 17.69296276 | Y136: 17.69296276 | Z136: 32.70784263 | AA136: 15.64050383
A137: 131 | B137: 131 | C137: 1.093381428 | D137: 15.62440661 | E137: 0.7880906437 | F137: 20.69246329 | G137: 0.6444509265 | H137: 22.49991131 | I137: 103 | J137: 1.223882194 | K137: 14.38925141 | L137: -0.0001064508257 | M137: -4.292805758e-05 | N137: -0.0005426834363 | O137: -0.0001905137931 | P137: -0.0001064508257 | Q137: -4.292805758e-05 | R137: -0.0008447357236 | S137: 0.0008650558056 | U137: 38.2131107 | V137: 37 | W137: 18.25425132 | X137: 17.67475316 | Y137: 17.67475316 | Z137: 32.70784263 | AA137: 15.62440661
A138: 132 | B138: 132 | C138: 1.095520658 | D138: 15.6084563 | E138: 0.790068169 | F138: 20.6696039 | G138: 0.6467532645 | H138: 22.46845402 | I138: 104 | J138: 1.228156248 | K138: 14.36164992 | L138: -0.000106639638 | M138: -4.301530219e-05 | N138: -0.0005433163493 | O138: -0.0001906115905 | P138: -0.000106639638 | Q138: -4.301530219e-05 | R138: -0.0008456773044 | S138: 0.000865996702 | U138: 38.21713371 | V138: 37 | W138: 18.23753612 | X138: 17.65670973 | Y138: 17.65670973 | Z138: 32.70784263 | AA138: 15.6084563
A139: 133 | B139: 133 | C139: 1.097644813 | D139: 15.59265059 | E139: 0.7920290929 | F139: 20.64698623 | G139: 0.6490304725 | H139: 22.43742649 | I139: 105 | J139: 1.232382187 | K139: 14.33446306 | L139: -0.0001068263328 | M139: -4.310155612e-05 | N139: -0.0005439438061 | O139: -0.0001907101568 | P139: -0.0001068263328 | Q139: -4.310155612e-05 | R139: -0.0008466112537 | S139: 0.0008669297591 | U139: 38.22111167 | V139: 37 | W139: 18.2209645 | X139: 17.63882988 | Y139: 17.63882988 | Z139: 32.70784263 | AA139: 15.59265059
A140: 134 | B140: 134 | C140: 1.099754091 | D140: 15.57698721 | E140: 0.7939736838 | F140: 20.62460578 | G140: 0.6512830996 | H140: 22.40681807 | I140: 106 | J140: 1.236561066 | K140: 14.30767998 | L140: -0.0001070109568 | M140: -4.318684121e-05 | N140: -0.0005445658987 | O140: -0.0001908094494 | P140: -0.0001070109568 | Q140: -4.318684121e-05 | R140: -0.0008475376923 | S140: 0.0008678551066 | U140: 38.22504543 | V140: 37 | W140: 18.20453433 | X140: 17.62111104 | Y140: 17.62111104 | Z140: 32.70784263 | AA140: 15.57698721
A141: 135 | B141: 135 | C141: 1.101848687 | D141: 15.56146398 | E141: 0.7959022033 | F141: 20.60245816 | G141: 0.6535116763 | H141: 22.37661852 | I141: 107 | J141: 1.240693906 | K141: 14.28129024 | L141: -0.0001071935549 | M141: -4.327117852e-05 | N141: -0.0005451827169 | O141: -0.0001909094277 | P141: -0.0001071935549 | Q141: -4.327117852e-05 | R141: -0.000848456738 | S141: 0.0008687728708 | U141: 38.2289358 | V141: 37 | W141: 18.18824354 | X141: 17.60355074 | Y141: 17.60355074 | Z141: 32.70784263 | AA141: 15.56146398
A142: 136 | B142: 136 | C142: 1.103928791 | D142: 15.54607873 | E142: 0.7978149065 | F142: 20.58053911 | G142: 0.655716715 | H142: 22.34681795 | I142: 108 | J142: 1.24478169 | K142: 14.25528377 | L142: -0.0001073741705 | M142: -4.335458845e-05 | N142: -0.0005457943482 | O142: -0.0001910100527 | P142: -0.0001073741705 | Q142: -4.335458845e-05 | R142: -0.0008493685058 | S142: 0.0008696831748 | U142: 38.23278357 | V142: 37 | W142: 18.17209011 | X142: 17.58614653 | Y142: 17.58614653 | Z142: 32.70784263 | AA142: 15.54607873
A143: 137 | B143: 137 | C143: 1.10599459 | D143: 15.53082937 | E143: 0.7997120422 | F143: 20.55884449 | G143: 0.6578987112 | H143: 22.31740682 | I143: 109 | J143: 1.248825374 | K143: 14.2296509 | L143: -0.0001075528456 | M143: -4.343709067e-05 | N143: -0.0005464008774 | O143: -0.0001911112873 | P143: -0.0001075528456 | Q143: -4.343709067e-05 | R143: -0.0008502731075 | S143: 0.0008705861383 | U143: 38.23658952 | V143: 37 | W143: 18.15607205 | X143: 17.56889603 | Y143: 17.56889603 | Z143: 32.70784263 | AA143: 15.53082937
A144: 138 | B144: 138 | C144: 1.108046268 | D144: 15.51571383 | E144: 0.8015938532 | F144: 20.53737025 | G144: 0.6600581442 | H144: 22.28837594 | I144: 110 | J144: 1.252825877 | K144: 14.20438229 | L144: -0.0001077296208 | M144: -4.351870424e-05 | N144: -0.0005470023876 | O144: -0.0001912130958 | P144: -0.0001077296208 | Q144: -4.351870424e-05 | R144: -0.0008511706526 | S144: 0.0008714818781 | U144: 38.24035439 | V144: 37 | W144: 18.14018742 | X144: 17.55179693 | Y144: 17.55179693 | Z144: 32.70784263 | AA144: 15.51571383
A145: 139 | B145: 139 | C145: 1.110084003 | D145: 15.5007301 | E145: 0.8034605763 | F145: 20.51611246 | G145: 0.6621954774 | H145: 22.25971644 | I145: 111 | J145: 1.256784092 | K145: 14.17946897 | L145: -0.0001079045354 | M145: -4.359944758e-05 | N145: -0.0005475989594 | O145: -0.0001913154443 | P145: -0.0001079045354 | Q145: -4.359944758e-05 | R145: -0.0008520612476 | S145: 0.0008723705078 | U145: 38.24407893 | V145: 37 | W145: 18.12443432 | X145: 17.53484692 | Y145: 17.53484692 | Z145: 32.70784263 | AA145: 15.5007301
A146: 140 | B146: 140 | C146: 1.112107973 | D146: 15.48587621 | E146: 0.8053124426 | F146: 20.49506729 | G146: 0.6643111597 | H146: 22.23141976 | I146: 112 | J146: 1.260700881 | K146: 14.15490226 | L146: -0.0001080776275 | M146: -4.367933852e-05 | N146: -0.0005481906714 | O146: -0.0001914183003 | P146: -0.0001080776275 | Q146: -4.367933852e-05 | R146: -0.0008529449966 | S146: 0.0008732521384 | U146: 38.24776384 | V146: 37 | W146: 18.10881088 | X146: 17.51804381 | Y146: 17.51804381 | Z146: 32.70784263 | AA146: 15.48587621
A147: 141 | B147: 141 | C147: 1.11411835 | D147: 15.47115024 | E147: 0.807149678 | F147: 20.47423102 | G147: 0.6664056257 | H147: 22.20347761 | I147: 113 | J147: 1.26457708 | K147: 14.13067379 | L147: -0.0001082489337 | M147: -4.375839433e-05 | N147: -0.0005487776004 | O147: -0.0001915216327 | P147: -0.0001082489337 | Q147: -4.375839433e-05 | R147: -0.0008538220012 | S147: 0.000874126878 | U147: 38.25140984 | V147: 37 | W147: 18.09331528 | X147: 17.50138539 | Y147: 17.50138539 | Z147: 32.70784263 | AA147: 15.47115024
A148: 142 | B148: 142 | C148: 1.116115303 | D148: 15.45655031 | E148: 0.8089725027 | F148: 20.45360001 | G148: 0.6684792962 | H148: 22.175882 | I148: 114 | J148: 1.2684135 | K148: 14.10677551 | L148: -0.0001084184899 | M148: -4.383663174e-05 | N148: -0.0005493598212 | O148: -0.0001916254116 | P148: -0.0001084184899 | Q148: -4.383663174e-05 | R148: -0.0008546923606 | S148: 0.0008749948319 | U148: 38.25501759 | V148: 37 | W148: 18.07794573 | X148: 17.48486954 | Y148: 17.48486954 | Z148: 32.70784263 | AA148: 15.45655031
A149: 143 | B149: 143 | C149: 1.118098997 | D149: 15.44207455 | E149: 0.8107811321 | F149: 20.43317072 | G149: 0.6705325791 | H149: 22.14862521 | I149: 115 | J149: 1.272210923 | K149: 14.08319961 | L149: -0.0001085863306 | M149: -4.391406695e-05 | N149: -0.0005499374066 | O149: -0.0001917296085 | P149: -0.0001085863306 | Q149: -4.391406695e-05 | R149: -0.0008555561717 | S149: 0.000875856103 | U149: 38.25858777 | V149: 37 | W149: 18.06270048 | X149: 17.46849418 | Y149: 17.46849418 | Z149: 32.70784263 | AA149: 15.44207455
A150: 144 | B150: 144 | C150: 1.120069597 | D150: 15.42772118 | E150: 0.8125757763 | F150: 20.41293969 | G150: 0.6725658699 | H150: 22.12169976 | I150: 116 | J150: 1.275970112 | K150: 14.05993859 | L150: -0.0001087524892 | M150: -4.399071569e-05 | N150: -0.0005505104279 | O150: -0.0001918341961 | P150: -0.0001087524892 | Q150: -4.399071569e-05 | R150: -0.0008564135292 | S150: 0.0008767107917 | U150: 38.26212102 | V150: 37 | W150: 18.04757781 | X150: 17.45225725 | Y150: 17.45225725 | Z150: 32.70784263 | AA150: 15.42772118
A151: 145 | B151: 145 | C151: 1.122027262 | D151: 15.41348842 | E151: 0.8143566408 | F151: 20.39290356 | G151: 0.674579552 | H151: 22.09509841 | I151: 117 | J151: 1.279691803 | K151: 14.03698516 | L151: -0.0001089169982 | M151: -4.406659318e-05 | N151: -0.0005510789544 | O151: -0.0001919391483 | P151: -0.0001089169982 | Q151: -4.406659318e-05 | R151: -0.0008572645255 | S151: 0.0008775589959 | U151: 38.26561798 | V151: 37 | W151: 18.03257605 | X151: 17.43615677 | Y151: 17.43615677 | Z151: 32.70784263 | AA151: 15.41348842
A152: 146 | B152: 146 | C152: 1.123972148 | D152: 15.39937454 | E152: 0.8161239263 | F152: 20.37305905 | G152: 0.6765739974 | H152: 22.06881418 | I152: 118 | J152: 1.283376712 | K152: 14.0143323 | L152: -0.0001090798893 | M152: -4.41417142e-05 | N152: -0.0005516430539 | O152: -0.00019204444 | P152: -0.0001090798893 | Q152: -4.41417142e-05 | R152: -0.0008581092511 | S152: 0.0008784008112 | U152: 38.26907927 | V152: 37 | W152: 18.01769355 | X152: 17.42019077 | Y152: 17.42019077 | Z152: 32.70784263 | AA152: 15.39937454
A153: 147 | B153: 147 | C153: 1.12590441 | D153: 15.38537786 | E153: 0.8178778291 | F153: 20.35340297 | G153: 0.678549567 | H153: 22.04284028 | I153: 119 | J153: 1.287025533 | K153: 13.99197322 | L153: -0.0001092411928 | M153: -4.42160931e-05 | N153: -0.0005522027926 | O153: -0.0001921500471 | P153: -0.0001092411928 | Q153: -4.42160931e-05 | R153: -0.0008589477942 | S153: 0.000879236331 | U153: 38.27250548 | V153: 37 | W153: 18.00292869 | X153: 17.40435733 | Y153: 17.40435733 | Z153: 32.70784263 | AA153: 15.38537786
A154: 148 | B154: 148 | C154: 1.127824198 | D154: 15.37149669 | E154: 0.8196185411 | F154: 20.33393218 | G154: 0.6805066113 | H154: 22.01717015 | I154: 120 | J154: 1.29063894 | K154: 13.96990134 | L154: -0.0001094009386 | M154: -4.428974379e-05 | N154: -0.0005527582351 | O154: -0.0001922559466 | P154: -0.0001094009386 | Q154: -4.428974379e-05 | R154: -0.0008597802414 | S154: 0.0008800656466 | U154: 38.27589721 | V154: 37 | W154: 17.98827988 | X154: 17.38865459 | Y154: 17.38865459 | Z154: 32.70784263 | AA154: 15.37149669
A155: 149 | B155: 149 | C155: 1.129731662 | D155: 15.35772943 | E155: 0.8213462497 | F155: 20.31464364 | G155: 0.6824454706 | H155: 21.99179744 | I155: 121 | J155: 1.294217589 | K155: 13.94811031 | L155: -0.0001095591555 | M155: -4.436267981e-05 | N155: -0.0005533094444 | O155: -0.0001923621165 | P155: -0.0001095591555 | Q155: -4.436267981e-05 | R155: -0.000860606677 | S155: 0.000880888847 | U155: 38.27925504 | V155: 37 | W155: 17.97374558 | X155: 17.37308069 | Y155: 17.37308069 | Z155: 32.70784263 | AA155: 15.35772943
A156: 150 | B156: 150 | C156: 1.131626945 | D156: 15.34407449 | E156: 0.8230611386 | F156: 20.29553437 | G156: 0.6843664754 | H156: 21.966716 | I156: 122 | J156: 1.297762115 | K156: 13.92659397 | L156: -0.0001097158714 | M156: -4.443491427e-05 | N156: -0.0005538564822 | O156: -0.0001924685355 | P156: -0.0001097158714 | Q156: -4.443491427e-05 | R156: -0.0008614271838 | S156: 0.0008817060193 | U156: 38.28257952 | V156: 37 | W156: 17.95932426 | X156: 17.35763384 | Y156: 17.35763384 | Z156: 32.70784263 | AA156: 15.34407449
A157: 151 | B157: 151 | C157: 1.133510193 | D157: 15.33053029 | E157: 0.824763387 | F157: 20.27660148 | G157: 0.686269947 | H157: 21.94191984 | I157: 123 | J157: 1.301273135 | K157: 13.90534636 | L157: -0.0001098711135 | M157: -4.450645993e-05 | N157: -0.0005543994088 | O157: -0.0001925751835 | P157: -0.0001098711135 | Q157: -4.450645993e-05 | R157: -0.0008622418426 | S157: 0.0008825172486 | U157: 38.2858712 | V157: 37 | W157: 17.94501443 | X157: 17.34231227 | Y157: 17.34231227 | Z157: 32.70784263 | AA157: 15.33053029
A158: 152 | B158: 152 | C158: 1.135381544 | D158: 15.31709531 | E158: 0.8264531707 | F158: 20.25784214 | G158: 0.6881561974 | H158: 21.91740317 | I158: 124 | J158: 1.304751251 | K158: 13.8843617 | L158: -0.0001100249084 | M158: -4.45773292e-05 | N158: -0.000554938283 | O158: -0.0001926820409 | P158: -0.0001100249084 | Q158: -4.45773292e-05 | R158: -0.0008630507325 | S158: 0.0008833226182 | U158: 38.28913063 | V158: 37 | W158: 17.93081463 | X158: 17.32711426 | Y158: 17.32711426 | Z158: 32.70784263 | AA158: 15.31709531
A159: 153 | B159: 153 | C159: 1.137241137 | D159: 15.30376805 | E159: 0.8281306614 | F159: 20.23925356 | G159: 0.6900255303 | H159: 21.89316039 | I159: 125 | J159: 1.308197046 | K159: 13.86363441 | L159: -0.0001101772817 | M159: -4.464753414e-05 | N159: -0.0005554731623 | O159: -0.0001927890891 | P159: -0.0001101772817 | Q159: -4.464753414e-05 | R159: -0.000863853931 | S159: 0.0008841222093 | U159: 38.29235832 | V159: 37 | W159: 17.91672342 | X159: 17.3120381 | Y159: 17.3120381 | Z159: 32.70784263 | AA159: 15.30376805
A160: 154 | B160: 154 | C160: 1.139089107 | D160: 15.29054705 | E160: 0.8297960273 | F160: 20.22083306 | G160: 0.6918782408 | H160: 21.86918604 | I160: 126 | J160: 1.311611088 | K160: 13.84315907 | L160: -0.0001103282584 | M160: -4.471708646e-05 | N160: -0.000556004103 | O160: -0.0001928963101 | P160: -0.0001103282584 | Q160: -4.471708646e-05 | R160: -0.0008646515138 | S160: 0.0008849161015 | U160: 38.2955548 | V160: 37 | W160: 17.90273938 | X160: 17.29708214 | Y160: 17.29708214 | Z160: 32.70784263 | AA160: 15.29054705
A161: 155 | B161: 155 | C161: 1.140925587 | D161: 15.27743086 | E161: 0.8314494329 | F161: 20.20257799 | G161: 0.6937146162 | H161: 21.84547482 | I161: 127 | J161: 1.31499393 | K161: 13.82293041 | L161: -0.0001104778629 | M161: -4.478599757e-05 | N161: -0.0005565311602 | O161: -0.0001930036867 | P161: -0.0001104778629 | Q161: -4.478599757e-05 | R161: -0.0008654435552 | S161: 0.0008857043728 | U161: 38.29872055 | V161: 37 | W161: 17.88886114 | X161: 17.28224475 | Y161: 17.28224475 | Z161: 32.70784263 | AA161: 15.27743086
A162: 156 | B162: 156 | C162: 1.142750708 | D162: 15.26441807 | E162: 0.8330910395 | F162: 20.18448577 | G162: 0.6955349358 | H162: 21.8220216 | I162: 128 | J162: 1.31834611 | K162: 13.80294334 | L162: -0.0001106261187 | M162: -4.485427858e-05 | N162: -0.0005570543877 | O162: -0.0001931112025 | P162: -0.0001106261187 | Q162: -4.485427858e-05 | R162: -0.0008662301279 | S162: 0.0008864870991 | U162: 38.30185607 | V162: 37 | W162: 17.87508734 | X162: 17.26752433 | Y162: 17.26752433 | Z162: 32.70784263 | AA162: 15.26441807
A163: 157 | B163: 157 | C163: 1.144564599 | D163: 15.2515073 | E163: 0.8347210048 | F163: 20.16655388 | G163: 0.6973394718 | H163: 21.7988214 | I163: 129 | J163: 1.321668151 | K163: 13.78319291 | L163: -0.000110773049 | M163: -4.492194028e-05 | N163: -0.0005575738381 | O163: -0.0001932188416 | P163: -0.000110773049 | Q163: -4.492194028e-05 | R163: -0.000867011303 | S163: 0.0008872643551 | U163: 38.30496183 | V163: 37 | W163: 17.86141665 | X163: 17.25291932 | Y163: 17.25291932 | Z163: 32.70784263 | AA163: 15.2515073
A164: 158 | B164: 158 | C164: 1.146367385 | D164: 15.23869719 | E164: 0.8363394834 | F164: 20.14877986 | G164: 0.699128489 | H164: 21.77586936 | I164: 130 | J164: 1.324960562 | K164: 13.76367433 | L164: -0.0001109186762 | M164: -4.49889932e-05 | N164: -0.0005580895629 | O164: -0.0001933265887 | P164: -0.0001109186762 | Q164: -4.49889932e-05 | R164: -0.0008677871504 | S164: 0.0008880362136 | U164: 38.30803832 | V164: 37 | W164: 17.84784776 | X164: 17.23842818 | Y164: 17.23842818 | Z164: 32.70784263 | AA164: 15.23869719
A165: 159 | B165: 159 | C165: 1.14815919 | D165: 15.22598641 | E165: 0.8379466266 | F165: 20.1311613 | G165: 0.7009022454 | H165: 21.75316077 | I165: 131 | J165: 1.32822384 | K165: 13.74438293 | L165: -0.0001110630221 | M165: -4.505544757e-05 | N165: -0.0005586016126 | O165: -0.0001934344294 | P165: -0.0001110630221 | Q165: -4.505544757e-05 | R165: -0.0008685577382 | S165: 0.0008888027462 | U165: 38.31108598 | V165: 37 | W165: 17.83437939 | X165: 17.2240494 | Y165: 17.2240494 | Z165: 32.70784263 | AA165: 15.22598641
A166: 160 | B166: 160 | C166: 1.149940137 | D166: 15.21337365 | E166: 0.8395425827 | F166: 20.11369584 | G166: 0.7026609922 | H166: 21.73069106 | I166: 132 | J166: 1.331458469 | K166: 13.72531419 | L166: -0.0001112061079 | M166: -4.512131338e-05 | N166: -0.0005591100365 | O166: -0.0001935423495 | P166: -0.0001112061079 | Q166: -4.512131338e-05 | R166: -0.0008693231334 | S166: 0.0008895640226 | U166: 38.31410526 | V166: 37 | W166: 17.82101027 | X166: 17.2097815 | Y166: 17.2097815 | Z166: 32.70784263 | AA166: 15.21337365
A167: 161 | B167: 161 | C167: 1.151710345 | D167: 15.20085764 | E167: 0.8411274971 | F167: 20.09638119 | G167: 0.7044049743 | H167: 21.70845577 | I167: 133 | J167: 1.334664919 | K167: 13.70646372 | L167: -0.0001113479546 | M167: -4.518660034e-05 | N167: -0.000559614883 | O167: -0.0001936503357 | P167: -0.0001113479546 | Q167: -4.518660034e-05 | R167: -0.0008700834018 | S167: 0.0008903201114 | U167: 38.3170966 | V167: 37 | W167: 17.80773917 | X167: 17.19562305 | Y167: 17.19562305 | Z167: 32.70784263 | AA167: 15.20085764
A168: 162 | B168: 162 | C168: 1.153469932 | D168: 15.18843711 | E168: 0.8427015122 | F168: 20.07921508 | G168: 0.7061344303 | H168: 21.68645058 | I168: 134 | J168: 1.337843649 | K168: 13.68782725 | L168: -0.0001114885821 | M168: -4.525131793e-05 | N168: -0.0005601161993 | O168: -0.000193758375 | P168: -0.0001114885821 | Q168: -4.525131793e-05 | R168: -0.0008708386075 | S168: 0.0008910710796 | U168: 38.32006043 | V168: 37 | W168: 17.79456488 | X168: 17.18157261 | Y168: 17.18157261 | Z168: 32.70784263 | AA168: 15.18843711
A169: 163 | B169: 163 | C169: 1.155219014 | D169: 15.17611083 | E169: 0.8442647675 | F169: 20.06219533 | G169: 0.707849593 | H169: 21.66467126 | I169: 135 | J169: 1.340995108 | K169: 13.66940063 | L169: -0.0001116280103 | M169: -4.531547539e-05 | N169: -0.0005606140319 | O169: -0.0001938664549 | P169: -0.0001116280103 | Q169: -4.531547539e-05 | R169: -0.0008715888137 | S169: 0.000891816993 | U169: 38.32299717 | V169: 37 | W169: 17.78148621 | X169: 17.16762879 | Y169: 17.16762879 | Z169: 32.70784263 | AA169: 15.17611083
A170: 164 | B170: 164 | C170: 1.156957705 | D170: 15.1638776 | E170: 0.8458173999 | F170: 20.04531976 | G170: 0.7095506892 | H170: 21.64311373 | I170: 136 | J170: 1.344119732 | K170: 13.65117983 | L170: -0.0001117662583 | M170: -4.537908173e-05 | N170: -0.0005611084261 | O170: -0.0001939745636 | P170: -0.0001117662583 | Q170: -4.537908173e-05 | R170: -0.0008723340822 | S170: 0.0008925579158 | U170: 38.32590723 | V170: 37 | W170: 17.76850197 | X170: 17.15379023 | Y170: 17.15379023 | Z170: 32.70784263 | AA170: 15.1638776
A171: 165 | B171: 165 | C171: 1.158686117 | D171: 15.15173622 | E171: 0.8473595435 | F171: 20.02858628 | G171: 0.7112379401 | H171: 21.621774 | I171: 137 | J171: 1.347217946 | K171: 13.63316093 | L171: -0.000111903345 | M171: -4.544214572e-05 | N171: -0.0005615994264 | O171: -0.0001940826896 | P171: -0.000111903345 | Q171: -4.544214572e-05 | R171: -0.0008730744736 | S171: 0.0008932939113 | U171: 38.32879102 | V171: 37 | W171: 17.75561103 | X171: 17.14005557 | Y171: 17.14005557 | Z171: 32.70784263 | AA171: 15.15173622
A172: 166 | B172: 166 | C172: 1.160404359 | D172: 15.13968553 | E172: 0.8488913298 | F172: 20.01199281 | G172: 0.7129115617 | H172: 21.60064818 | I172: 138 | J172: 1.350290167 | K172: 13.61534012 | L172: -0.0001120392884 | M172: -4.550467594e-05 | N172: -0.0005620870764 | O172: -0.0001941908218 | P172: -0.0001120392884 | Q172: -4.550467594e-05 | R172: -0.0008738100474 | S172: 0.0008940250412 | U172: 38.33164892 | V172: 37 | W172: 17.74281224 | X172: 17.1264235 | Y172: 17.1264235 | Z172: 32.70784263 | AA172: 15.13968553
A173: 167 | B173: 167 | C173: 1.162112542 | D173: 15.12772439 | E173: 0.8504128879 | F173: 19.99553734 | G173: 0.7145717646 | H173: 21.57973248 | I173: 139 | J173: 1.353336799 | K173: 13.59771369 | L173: -0.0001121741066 | M173: -4.556668075e-05 | N173: -0.0005625714187 | O173: -0.0001942989498 | P173: -0.0001121741066 | Q173: -4.556668075e-05 | R173: -0.000874540862 | S173: 0.000894751366 | U173: 38.33448132 | V173: 37 | W173: 17.73010451 | X173: 17.11289273 | Y173: 17.11289273 | Z173: 32.70784263 | AA173: 15.12772439
A174: 168 | B174: 168 | C174: 1.16381077 | D174: 15.11585166 | E174: 0.8519243442 | F174: 19.9792179 | G174: 0.7162187545 | H174: 21.55902323 | I174: 140 | J174: 1.356358238 | K174: 13.58027803 | L174: -0.0001123078168 | M174: -4.562816831e-05 | N174: -0.0005630524953 | O174: -0.0001944070633 | P174: -0.0001123078168 | Q174: -4.562816831e-05 | R174: -0.0008752669746 | S174: 0.0008954729454 | U174: 38.3372886 | V174: 37 | W174: 17.71748673 | X174: 17.09946198 | Y174: 17.09946198 | Z174: 32.70784263 | AA174: 15.11585166
A175: 169 | B175: 169 | C175: 1.165499149 | D175: 15.10406626 | E175: 0.853425823 | F175: 19.96303253 | G175: 0.717852732 | H175: 21.53851684 | I175: 141 | J175: 1.35935487 | K175: 13.56302962 | L175: -0.0001124404362 | M175: -4.568914658e-05 | N175: -0.0005635303473 | O175: -0.0001945151527 | P175: -0.0001124404362 | Q175: -4.568914658e-05 | R175: -0.0008759884413 | S175: 0.0008961898375 | U175: 38.34007113 | V175: 37 | W175: 17.70495783 | X175: 17.08613001 | Y175: 17.08613001 | Z175: 32.70784263 | AA175: 15.10406626
A176: 170 | B176: 170 | C176: 1.167177783 | D176: 15.09236708 | E176: 0.8549174459 | F176: 19.94697936 | G176: 0.7194738932 | H176: 21.51820981 | I176: 142 | J176: 1.362327073 | K176: 13.54596506 | L176: -0.0001125719812 | M176: -4.574962335e-05 | N176: -0.0005640050147 | O176: -0.0001946232084 | P176: -0.0001125719812 | Q176: -4.574962335e-05 | R176: -0.0008767053175 | S176: 0.0008969020995 | U176: 38.34282927 | V176: 37 | W176: 17.69251677 | X176: 17.07289558 | Y176: 17.07289558 | Z176: 32.70784263 | AA176: 15.09236708
A177: 171 | B177: 171 | C177: 1.168846772 | D177: 15.08075307 | E177: 0.8563993325 | F177: 19.93105651 | G177: 0.7210824294 | H177: 21.49809874 | I177: 143 | J177: 1.365275215 | K177: 13.52908101 | L177: -0.0001127024681 | M177: -4.58096062e-05 | N177: -0.0005644765372 | O177: -0.0001947312216 | P177: -0.0001127024681 | Q177: -4.58096062e-05 | R177: -0.000877417657 | S177: 0.0008976097875 | U177: 38.34556338 | V177: 37 | W177: 17.6801625 | X177: 17.05975751 | Y177: 17.05975751 | Z177: 32.70784263 | AA177: 15.08075307
A178: 172 | B178: 172 | C178: 1.170506217 | D178: 15.06922319 | E178: 0.8578716001 | F178: 19.91526217 | G178: 0.7226785277 | H178: 21.47818029 | I178: 144 | J178: 1.368199655 | K178: 13.51237423 | L178: -0.0001128319127 | M178: -4.586910257e-05 | N178: -0.0005649449533 | O178: -0.0001948391835 | P178: -0.0001128319127 | Q178: -4.586910257e-05 | R178: -0.0008781255131 | S178: 0.0008983129565 | U178: 38.3482738 | V178: 37 | W178: 17.66789401 | X178: 17.04671459 | Y178: 17.04671459 | Z178: 32.70784263 | AA178: 15.06922319
A179: 173 | B179: 173 | C179: 1.172156216 | D179: 15.05777641 | E179: 0.8593343637 | F179: 19.89959457 | G179: 0.7242623708 | H179: 21.45845123 | I179: 145 | J179: 1.371100746 | K179: 13.49584157 | L179: -0.0001129603305 | M179: -4.592811969e-05 | N179: -0.0005654103012 | O179: -0.0001949470858 | P179: -0.0001129603305 | Q179: -4.592811969e-05 | R179: -0.000878828938 | S179: 0.0008990116604 | U179: 38.35096088 | V179: 37 | W179: 17.6557103 | X179: 17.03376568 | Y179: 17.03376568 | Z179: 32.70784263 | AA179: 15.05777641
A180: 174 | B180: 174 | C180: 1.173796866 | D180: 15.04641171 | E180: 0.8607877364 | F180: 19.88405194 | G180: 0.7258341372 | H180: 21.43890841 | I180: 146 | J180: 1.37397883 | K180: 13.47947993 | L180: -0.0001130877365 | M180: -4.598666466e-05 | N180: -0.0005658726179 | O180: -0.0001950549206 | P180: -0.0001130877365 | Q180: -4.598666466e-05 | R180: -0.0008795279828 | S180: 0.0008997059522 | U180: 38.35362494 | V180: 37 | W180: 17.64361037 | X180: 17.02090962 | Y180: 17.02090962 | Z180: 32.70784263 | AA180: 15.04641171
A181: 175 | B181: 175 | C181: 1.175428263 | D181: 15.03512811 | E181: 0.862231829 | F181: 19.86863259 | G181: 0.7273940015 | H181: 21.41954874 | I181: 147 | J181: 1.376834243 | K181: 13.46328634 | L181: -0.0001132141456 | M181: -4.60447444e-05 | N181: -0.0005663319402 | O181: -0.0001951626802 | P181: -0.0001132141456 | Q181: -4.60447444e-05 | R181: -0.0008802226979 | S181: 0.0009003958838 | U181: 38.35626632 | V181: 37 | W181: 17.63159327 | X181: 17.00814531 | Y181: 17.00814531 | Z181: 32.70784263 | AA181: 15.03512811
A182: 176 | B182: 176 | C182: 1.177050499 | D182: 15.02392464 | E182: 0.8636667505 | F182: 19.85333483 | G182: 0.7289421342 | H182: 21.4003692 | I182: 148 | J182: 1.379667315 | K182: 13.44725786 | L182: -0.0001133395722 | M182: -4.610236567e-05 | N182: -0.0005667883037 | O182: -0.0001952703571 | P182: -0.0001133395722 | Q182: -4.610236567e-05 | R182: -0.0008809131326 | S182: 0.0009010815065 | U182: 38.35888533 | V182: 37 | W182: 17.61965804 | X182: 16.99547163 | Y182: 16.99547163 | Z182: 32.70784263 | AA182: 15.02392464
A183: 177 | B183: 177 | C183: 1.178663668 | D183: 15.01280033 | E183: 0.8650926078 | F183: 19.83815701 | G183: 0.7304787022 | H183: 21.38136687 | I183: 149 | J183: 1.382478365 | K183: 13.43139164 | L183: -0.0001134640304 | M183: -4.615953509e-05 | N183: -0.0005672417438 | O183: -0.0001953779443 | P183: -0.0001134640304 | Q183: -4.615953509e-05 | R183: -0.0008815993355 | S183: 0.0009017628701 | U183: 38.3614823 | V183: 37 | W183: 17.60780375 | X183: 16.98288751 | Y183: 16.98288751 | Z183: 32.70784263 | AA183: 15.01280033
A184: 178 | B184: 178 | C184: 1.18026786 | D184: 15.00175424 | E184: 0.8665095061 | F184: 19.82309754 | G184: 0.7320038687 | H184: 21.36253889 | I184: 150 | J184: 1.385267708 | K184: 13.41568491 | L184: -0.000113587534 | M184: -4.621625913e-05 | N184: -0.0005676922949 | O184: -0.0001954854351 | P184: -0.000113587534 | Q184: -4.621625913e-05 | R184: -0.0008822813542 | S184: 0.0009024400239 | U184: 38.36405752 | V184: 37 | W184: 17.59602947 | X184: 16.97039188 | Y184: 16.97039188 | Z184: 32.70784263 | AA184: 15.00175424
A185: 179 | B185: 179 | C185: 1.181863166 | D185: 14.99078546 | E185: 0.8679175484 | F185: 19.80815483 | G185: 0.7335177933 | H185: 21.34388245 | I185: 151 | J185: 1.388035651 | K185: 13.40013495 | L185: -0.0001137100965 | M185: -4.627254414e-05 | N185: -0.0005681399911 | O185: -0.0001955928227 | P185: -0.0001137100965 | Q185: -4.627254414e-05 | R185: -0.0008829592357 | S185: 0.0009031130162 | U185: 38.36661131 | V185: 37 | W185: 17.5843343 | X185: 16.9579837 | Y185: 16.9579837 | Z185: 32.70784263 | AA185: 14.99078546
A186: 180 | B186: 180 | C186: 1.183449673 | D186: 14.97989307 | E186: 0.8693168361 | F186: 19.79332732 | G186: 0.735020632 | H186: 21.32539482 | I186: 152 | J186: 1.390782495 | K186: 13.38473913 | L186: -0.0001138317311 | M186: -4.632839629e-05 | N186: -0.0005685848656 | O186: -0.000195700101 | P186: -0.0001138317311 | Q186: -4.632839629e-05 | R186: -0.0008836330259 | S186: 0.0009037818944 | U186: 38.36914395 | V186: 37 | W186: 17.57271735 | X186: 16.94566193 | Y186: 16.94566193 | Z186: 32.70784263 | AA186: 14.97989307
A187: 181 | B187: 181 | C187: 1.185027468 | D187: 14.96907618 | E187: 0.8707074689 | F187: 19.7786135 | G187: 0.7365125378 | H187: 21.30707334 | I187: 153 | J187: 1.393508533 | K187: 13.36949485 | L187: -0.0001139524508 | M187: -4.638382164e-05 | N187: -0.000569026951 | O187: -0.000195807264 | P187: -0.0001139524508 | Q187: -4.638382164e-05 | R187: -0.0008843027702 | S187: 0.0009044467052 | U187: 38.37165573 | V187: 37 | W187: 17.56117774 | X187: 16.93342557 | Y187: 16.93342557 | Z187: 32.70784263 | AA187: 14.96907618
A188: 182 | B188: 182 | C188: 1.186596637 | D188: 14.95833391 | E188: 0.8720895445 | F188: 19.76401188 | G188: 0.7379936602 | H188: 21.2889154 | I188: 154 | J188: 1.396214052 | K188: 13.35439961 | L188: -0.0001140722682 | M188: -4.643882614e-05 | N188: -0.0005694662796 | O188: -0.0001959143057 | P188: -0.0001140722682 | Q188: -4.643882614e-05 | R188: -0.0008849685129 | S188: 0.0009051074943 | U188: 38.37414695 | V188: 37 | W188: 17.54971462 | X188: 16.92127363 | Y188: 16.92127363 | Z188: 32.70784263 | AA188: 14.95833391
A189: 183 | B189: 183 | C189: 1.188157264 | D189: 14.9476654 | E189: 0.8734631591 | F189: 19.749521 | G189: 0.7394641455 | H189: 21.27091846 | I189: 155 | J189: 1.398899336 | K189: 13.33945094 | L189: -0.0001141911956 | M189: -4.649341558e-05 | N189: -0.0005699028829 | O189: -0.0001960212207 | P189: -0.0001141911956 | Q189: -4.649341558e-05 | R189: -0.0008856302978 | S189: 0.0009057643067 | U189: 38.37661788 | V189: 37 | W189: 17.53832712 | X189: 16.90920512 | Y189: 16.90920512 | Z189: 32.70784263 | AA189: 14.9476654
A190: 184 | B190: 184 | C190: 1.189709432 | D190: 14.9370698 | E190: 0.8748284072 | F190: 19.73513942 | G190: 0.7409241372 | H190: 21.25308002 | I190: 156 | J190: 1.401564659 | K190: 13.32464644 | L190: -0.0001143092453 | M190: -4.654759565e-05 | N190: -0.0005703367919 | O190: -0.0001961280036 | P190: -0.0001143092453 | Q190: -4.654759565e-05 | R190: -0.0008862881678 | S190: 0.0009064171865 | U190: 38.3790688 | V190: 37 | W190: 17.52701443 | X190: 16.89721908 | Y190: 16.89721908 | Z190: 32.70784263 | AA190: 14.9370698
A191: 185 | B191: 185 | C191: 1.191253223 | D191: 14.92654627 | E191: 0.8761853818 | F191: 19.72086573 | G191: 0.7423737754 | H191: 21.23539766 | I191: 157 | J191: 1.404210292 | K191: 13.30998378 | L191: -0.0001144264291 | M191: -4.66013719e-05 | N191: -0.000570768037 | O191: -0.0001962346493 | P191: -0.0001144264291 | Q191: -4.66013719e-05 | R191: -0.0008869421653 | S191: 0.0009070661773 | U191: 38.38149998 | V191: 37 | W191: 17.51577571 | X191: 16.88531458 | Y191: 16.88531458 | Z191: 32.70784263 | AA191: 14.92654627
A192: 186 | B192: 186 | C192: 1.192788718 | D192: 14.91609399 | E192: 0.8775341741 | F192: 19.70669856 | G192: 0.7438131977 | H192: 21.21786901 | I192: 158 | J192: 1.406836499 | K192: 13.29546066 | L192: -0.0001145427586 | M192: -4.665474979e-05 | N192: -0.0005711966482 | O192: -0.0001963411528 | P192: -0.0001145427586 | Q192: -4.665474979e-05 | R192: -0.0008875923318 | S192: 0.0009077113217 | U192: 38.38391167 | V192: 37 | W192: 17.50461015 | X192: 16.87349068 | Y192: 16.87349068 | Z192: 32.70784263 | AA192: 14.91609399
A193: 187 | B193: 187 | C193: 1.194315997 | D193: 14.90571216 | E193: 0.8788748739 | F193: 19.69263654 | G193: 0.7452425387 | H193: 21.20049173 | I193: 159 | J193: 1.409443539 | K193: 13.28107486 | L193: -0.0001146582451 | M193: -4.670773466e-05 | N193: -0.0005716226548 | O193: -0.0001964475093 | P193: -0.0001146582451 | Q193: -4.670773466e-05 | R193: -0.0008882387082 | S193: 0.0009083526616 | U193: 38.38630414 | V193: 37 | W193: 17.49351698 | X193: 16.86174646 | Y193: 16.86174646 | Z193: 32.70784263 | AA193: 14.90571216
A194: 188 | B194: 188 | C194: 1.195835137 | D194: 14.89539997 | E194: 0.8802075694 | F194: 19.67867836 | G194: 0.7466619303 | H194: 21.18326355 | I194: 160 | J194: 1.412031666 | K194: 13.26682417 | L194: -0.0001147729 | M194: -4.676033174e-05 | N194: -0.0005720460858 | O194: -0.0001965537145 | P194: -0.0001147729 | Q194: -4.676033174e-05 | R194: -0.0008888813346 | S194: 0.0009089902384 | U194: 38.38867764 | V194: 37 | W194: 17.48249539 | X194: 16.85008104 | Y194: 16.85008104 | Z194: 32.70784263 | AA194: 14.89539997
A195: 189 | B195: 189 | C195: 1.197346215 | D195: 14.88515665 | E195: 0.8815323476 | F195: 19.66482269 | G195: 0.7480715018 | H195: 21.16618225 | I195: 161 | J195: 1.414601128 | K195: 13.25270648 | L195: -0.000114886734 | M195: -4.681254613e-05 | N195: -0.0005724669695 | O195: -0.0001966597638 | P195: -0.000114886734 | Q195: -4.681254613e-05 | R195: -0.0008895202506 | S195: 0.0009096240925 | U195: 38.39103243 | V195: 37 | W195: 17.47154461 | X195: 16.83849352 | Y195: 16.83849352 | Z195: 32.70784263 | AA195: 14.88515665
A196: 190 | B196: 190 | C196: 1.198849309 | D196: 14.87498143 | E196: 0.8828492936 | F196: 19.65106826 | G196: 0.7494713797 | H196: 21.14924567 | I196: 162 | J196: 1.417152169 | K196: 13.23871969 | L196: -0.0001149997579 | M196: -4.686438288e-05 | N196: -0.0005728853339 | O196: -0.0001967656531 | P196: -0.0001149997579 | Q196: -4.686438288e-05 | R196: -0.0008901554951 | S196: 0.0009102542638 | U196: 38.39336875 | V196: 37 | W196: 17.4606639 | X196: 16.82698303 | Y196: 16.82698303 | Z196: 32.70784263 | AA196: 14.87498143
A197: 191 | B197: 191 | C197: 1.200344492 | D197: 14.86487355 | E197: 0.8841584916 | F197: 19.63741382 | G197: 0.7508616882 | H197: 21.13245167 | I197: 163 | J197: 1.419685028 | K197: 13.22486176 | L197: -0.0001151119821 | M197: -4.691584689e-05 | N197: -0.0005733012064 | O197: -0.0001968713784 | P197: -0.0001151119821 | Q197: -4.691584689e-05 | R197: -0.0008907871064 | S197: 0.0009108807917 | U197: 38.39568683 | V197: 37 | W197: 17.4498525 | X197: 16.81554872 | Y197: 16.81554872 | Z197: 32.70784263 | AA197: 14.86487355
A198: 192 | B198: 192 | C198: 1.201831839 | D198: 14.85483226 | E198: 0.885460024 | F198: 19.62385812 | G198: 0.7522425491 | H198: 21.11579816 | I198: 164 | J198: 1.422199939 | K198: 13.21113071 | L198: -0.0001152234171 | M198: -4.696694298e-05 | N198: -0.0005737146141 | O198: -0.0001969769359 | P198: -0.0001152234171 | Q198: -4.696694298e-05 | R198: -0.0008914151221 | S198: 0.0009115037146 | U198: 38.39798692 | V198: 37 | W198: 17.43910967 | X198: 16.80418974 | Y198: 16.80418974 | Z198: 32.70784263 | AA198: 14.85483226
A199: 193 | B199: 193 | C199: 1.203311422 | D199: 14.84485684 | E199: 0.8867539721 | F199: 19.61039995 | G199: 0.7536140815 | H199: 21.09928313 | I199: 165 | J199: 1.424697131 | K199: 13.19752459 | L199: -0.0001153340728 | M199: -4.701767589e-05 | N199: -0.0005741255834 | O199: -0.0001970823218 | P199: -0.0001153340728 | Q199: -4.701767589e-05 | R199: -0.0008920395793 | S199: 0.0009121230704 | U199: 38.40026924 | V199: 37 | W199: 17.4284347 | X199: 16.79290527 | Y199: 16.79290527 | Z199: 32.70784263 | AA199: 14.84485684
A200: 194 | B200: 194 | C200: 1.204783314 | D200: 14.83494655 | E200: 0.8880404158 | F200: 19.59703812 | G200: 0.7549764026 | H200: 21.08290456 | I200: 166 | J200: 1.42717683 | K200: 13.18404148 | L200: -0.0001154439592 | M200: -4.706805025e-05 | N200: -0.0005745341406 | O200: -0.0001971875326 | P200: -0.0001154439592 | Q200: -4.706805025e-05 | R200: -0.0008926605146 | S200: 0.0009127388966 | U200: 38.40253403 | V200: 37 | W200: 17.41782686 | X200: 16.78169449 | Y200: 16.78169449 | Z200: 32.70784263 | AA200: 14.83494655
A201: 195 | B201: 195 | C201: 1.206247586 | D201: 14.8251007 | E201: 0.8893194338 | F201: 19.58377146 | G201: 0.756329627 | H201: 21.06666051 | I201: 167 | J201: 1.429639256 | K201: 13.17067952 | L201: -0.0001155530859 | M201: -4.71180706e-05 | N201: -0.0005749403111 | O201: -0.000197292565 | P201: -0.0001155530859 | Q201: -4.71180706e-05 | R201: -0.0008932779636 | S201: 0.0009133512298 | U201: 38.40478151 | V201: 37 | W201: 17.40728545 | X201: 16.7705566 | Y201: 16.7705566 | Z201: 32.70784263 | AA201: 14.8251007
... 170 more rows

Sheet GraphsStress
A2: time | B2: =Strain!B2 -> 365 | C2: days
A4: Phase 1 | K4: Phase 2 | U4: Phase 3

Sheet GraphsStrain
A2: time | B2: =Strain!B2 -> 365 | C2: days
A4: Phase 1 | K4: Phase 2 | U4: Phase 3

Sheet GraphsStrainPoints
A2: Time | B2: =Strain!B2 -> 365 | C2: days

Sheet GraphsEPhi
A2: time | B2: =Strain!B2 -> 365 | C2: days
A23: Modulus of elasticity & creep coefficient in time
